Workbook

Sheet Welcome
B5: If a yellow bar appears at the top, which asks you to accept macros or ActiveX-objects, you are advised to accept. Otherwise the application form will not work.
B9: What type of project are you applying for?
B12: Collaboration projects
B13: Collaboration projects in general have higher rates than individual projects. To achieve an increased rate for collaboration projects, the project must be one of the following: I samarbejdsprojekter er det et krav, at projektets resultater formidles bredt gennem konferencer, publikationer, open access-samlinger, gratis software eller open source-software. (Dette gælder dog ikke fortrolige oplysninger.)
B16: • A collaboration between companies of which at least one is a SME, and where no individual company holds more than 70 percent of the total GUDP subsidy, or;
B19: • A collaboration between companies (regardless of size) and a research and knowledge dissemination institution, where the latter contributes with a co-financing of at least 10 percent of the GUDP subsidy.
B22: In collaboration projects, it is a requirement, that the project results are widely disseminated through conferences, publications, open access archives, free software or open source-software. (However, this does not apply to information that is confidential.)
B26: Individual projects
B27: An individual project is either:
B28: • A project with a single participant – main applicant – which is a company (regardless of size), or;
B30: • A project with several participants, but where one of the participants holds more than 70 percent of the total GUDP subsidy.
B33: Please notice the following:
B34: For individual projects, it can sometimes be necessary with external assistance, e.g., with help from experts. These are not co-applicants of the project, but are hired to carry out project-specific work, that the project participants themselves cannot carry out, due to lack of specific competences
B38: For both collaboration and individual projects, it applies, that a sub-budget has to be made for each activity type, for each participant. There are three different acitivity types: 1) Applied research, 2) Development, 3) Demonstration
B42: Example: An individual project, with one participant, that includes the activity types 'Development' and 'Demonstration', has to make two sub-budgets – one for each activity type.

Sheet Gantt chart
A2: Gantt chart
C4: 20XX | G4: 20XX | K4: 20XX | O4: 20XX | S4: Acticity type (F/U/D)
B5: Involved project participants | C5: Jan | D5: Apr | E5: Jul | F5: Oct | G5: Jan | H5: Apr | I5: Jul | J5: Oct | K5: Jan | L5: Apr | M5: Jul | N5: Oct | O5: Jan | P5: Apr | Q5: Jul | R5: Oct | S5: and deliverable type, see list on sheet "List of deliverable types" | T5: Number of hours | U5: WP budget
A6: WP 1: Name of WP1
A7: 1.1
A8: 1.2
A9: 1.3
A10: Etc.
A12: Milestones:
A13: M1.1:
A14: M 1.2: | T14: Total no. of hours: | U14: Total budget:
A15: WP 2
A16: 2.1
A17: 2.2
A18: 2.3
A20: Milestones:
A21: M2.1:
A22: M 2.2: | T22: Total no. of hours: | U22: Total budget:
A23: WP 3
A24: 3.1
A25: 3.2
A26: 3.3
T28: Total no. of hours: | U28: Total budget:
A29: WP 4
A30: 4.1
A31: 4.2
A32: 4.3
T33: Total no. of hours: | U33: Total budget:
A34: WP 5
A35: 5.1
A36: 5.2
A37: 5.3
T38: Total no. of hours: | U38: Total budget:
A40: Total | T40: Total no. of hours: | U40: Total budget:
U43: Checklist for mandatory information in Gantt chart
U44: Involved project participants for each work package
U45: Acticity type for each work package (Research, Development or Demonstration)
U46: Total number of hours for each work package
U47: Total budget for each work package
U48: Total number of hours
U49: Total budget
U50: Milestones in each workpackage. Each milestone must be assigned a delivery type according to the list of abbreviations in "List of deliverable types"

Sheet Example of a Gantt chart
A3: Example of Gantt chart
C5: 2022 | G5: 2023 | K5: 2024 | O5: 2025 | S5: Activity type (F/U/D)
B6: Involved project participants | C6: Jan | D6: Apr | E6: Jul | F6: Oct | G6: Jan | H6: Apr | I6: Jul | J6: Oct | K6: Jan | L6: Apr | M6: Jul | N6: Oct | O6: Jan | P6: Apr | Q6: Jul | R6: Oct | S6: and delivery type, see Sheet "List of deliverable types" | T6: Number of hours | U6: WP budget
A7: WP 1: Planning of research project | B7: Name of responsible (Resp.) | S7: U | T7: No. of hours company 1: 100
A8: 1.1: Selection of xxxx | B8: Participant 1 | T8: No. of hours company 2: 225
A9: 1.2: Meetings with relevant professionals | B9: Participant 2
A10: 1.3: Total assessment of xxxx | B10: Participant 3
B11: Participant 4
A12: Milestones:
A13: M 1.1: Research set-up | C13: x
A14: M 1.2: Meetings with professionals conducted | C14: x
A15: M 1.3: Internal research-protocol prepared | E15: UF1 | F15: UF3 | S15: UF1 and UF3 | U15: Total budget: 210.843 DKK
T16: Total no. of hours: 325 | U16: (incl. OH)
A17: WP 2: First study | B17: Name of responsible (Resp.) | S17: F | T17: No. of hours company 1: 160
A18: 2.1: Locate suitable herds | B18: Participant 1 | T18: No. of hours company 2: 310
A19: 2.2: Take samples | B19: Participant 2
A20: 2.3: Analysis and assessment of xxxx | B20: Participant 3
A21: 2.4: Processing of results | B21: Participant 4
A23: Milestones:
A24: M 2.1: Signed agreements with herds | E24: x
A25: M 2.2: Research report | G25: FV4 | S25: FV4
A26: M 2.3: Manuscript | H26: FV1 | S26: FV1 | U26: Total budget: 192.378 DKK
T27: Total no. of hours: 470 | U27: (incl. OH)
A28: WP 3: Test of xxxx | B28: Name of responsible (Resp.) | S28: F | T28: No. of hours company 1: 1269
A29: 3.1: Visit herds | B29: Participant 1 | T29: No. of hours company 2: 800
A30: 3.2: Conducting experiments | B30: Participant 2 | T30: No. of hours company 3: 200
A31: 3.3: Analysis and assessment of xxxx | B31: Participant 3 | T31: No. of hours company 4: 854
A32: 3.4: Publication | B32: Participant 4
A34: Milestones:
A35: M 3.1: Experiments on-site with herds | H35: x
A36: M 3.2: Research report | K36: FV4 | S36: FV4
A37: M 3.3: Preparation of publication | L37: FV1 | S37: FV1 | T37: Total number of hours: 3.123 | U37: Total budget: 2.019.307 DKK
U38: (incl. OH)
A39: WP 4: Development of xxxx | B39: Name of responsible (Resp.) | S39: U | T39: No. of hours company 1: 617
A40: 4.1 Ongoing evaluation of xxxx | B40: Participant 1 | T40: No. of hours company 2: 300
A41: 4.2 Formulation of xxxx | B41: Participant 2
B42: Participant 3
A43: Milestones: | B43: Participant 4
A44: M 4.1: Concept of prototype | P44: UP3, UP4 | S44: UP3 and UP4 | U44: Total budget: 620.732 DKK
T45: Total no. of hours: 917 | U45: (incl. OH)
A46: WP 5: Development of xxxx | B46: Name of responsible (Resp.) | S46: U, D | T46: No. of hours company 1: 767
A47: 5.1: Preparation of final experiments | B47: Participant 1 | T47: No. of hours company 2: 1736
A48: 5.2. Conduct experiments | B48: Participant 2 | T48: No. of hours company 3: 320
A49: 5.3: Conduct test of xxxx | B49: Participant 3
A50: 5.4: Statistical calculations | B50: Participant 4
A51: 5.5: Conduct meetings
A53: Milestones:
A54: M 5.1: Workshop | P54: UF5 | S54: UF5
A55: M 5.2: Try-outs of experiments | O55: x
A56: M 5.3: Statistical calculations | P56: UF2 | S56: UF2
A57: M 5.4: Publication of xxxx | R57: UF4 | S57: UF4
A58: M 5.5: Manuscript | Q58: UF4 | S58: UF4
A59: M 5.6: Meetings conducted | R59: x | U59: Total budget: 2.011.386 DKK
T60: Total no. of hours: 2823 | U60: (incl. OH)
A62: Total | T62: Total accumulated no. of hours: 7.658 | U62: Totalt accumulated budget: 5.054.646 DKK

Sheet List of deliverable types
A1: List of deliverable types and abbrevations to be used when completing the Gantt chart for research, development and demonstration projects
A2: APPLIED RESEARCH | C2: DEVELOPMENT | E2: DEMONSTRATION | G2: NETVÆRK
A3: Scientific production | C3: New products, processes etc. | E3: New products, processes etc. | G3: Leveringstyper
A4: International journal (peer reviewed) | B4: FV1 | C4: New or significantly improved product | D4: UP1 | G4: Potentielle udviklingsarbejder konkretiserede | H4: N1
A5: Danish journal (peer reviewed) | B5: FV2 | C5: New or significantly improved production process | D5: UP2 | G5: Analyser, udredninger, strategier udarbejdet | H5: N2
A6: Proceedings (whole, not single papers) and working papers | B6: FV3 | C6: New concepts etc. | D6: UP3 | G6: Mindre udredninger/ notater udarbejdet | H6: N3
A7: Research report | B7: FV4 | C7: Prototypes | D7: UP4 | G7: Kronikker, avisinterview, debatartikler | H7: N4
A8: Conference presentation incl. paper/abstract/poster (scientific conference) | B8: FV5 | C8: Pilot plant | D8: UP5 | G8: Artikler i fagtidsskrifter eller fagspecifikke aviser | H8: N5
A9: Commercialization and application | C9: Commercialization and application | E9: Commercialization and application | G9: Nyhedsbreve | H9: N6
A10: Patents | B10: FK1 | C10: Patents | D10: UK1 | G10: Hjemmesider tilknyttet til netværket/partnerskabet | H10: N7
A11: - Novelty study | C11: - Novelty study | G11: Andet (beskrives særskilt) | H11: N8
A12: - Submission of application | C12: - Submission of application
A13: - Patent approval | C13: - Patent approval
A14: - Agreement on commercial application | C14: - Agreement on commercial application
A15: Strategic method development and authority procedure | B15: FK2 | C15: Trademark protection | D15: UK2
A16: Other type of commercialization | B16: FK3 | C16: Certification/test (not required by law) | D16: UK3
C17: Other kinds of commercialization, including changes in technical standards, changes in advisory standards etc. | D17: UK4
A18: Software programs | C18: Software programs | E18: Software programs
A19: Internal application | B19: FS1 | C19: Internal application | D19: US1
A20: External application | B20: FS2 | C20: External application | D20: US2
A21: Communication and dissemination | C21: Communication and dissemination | E21: Communication and dissemination
A22: Major reports and analyses, more than 50 pages | B22: FF1 | C22: Major reports and analyses, more than 50 pages | D22: UF1 | E22: Dissemination via practical showcasing | F22: DF1
A23: Minor reports/briefs incl. teaching material (research level) | B23: FF2 | C23: Minor reports/briefs incl. Teaching material (advisory level) | D23: UF2 | E23: Technical manuals, fact sheets etc. incl. teaching material (end-user level) | F23: DF2
A24: Articles in subject specific journals and newspapers | B24: FF3 | C24: Technical manuals, fact sheets etc. | D24: UF3 | E24: Articles in subject-specific journals and newspapers | F24: DF3
A25: Thematic issues in relation to the project | B25: FF4 | C25: Articles in subject-specific journals and newspapers | D25: UF4 | E25: Thematic meetings / Workshops / Meetings / Open house arrangements / Presentations / Video / Podcast /Training (end-user level) | F25: DF4
A26: Thematic meetings / Workshops / Meetings / Open house arrangements / Presentations / Video / Podcast / Presentation at non-scientific conferences / Training (research level) | B26: FF5 | C26: Thematic meetings / Workshops / Meetings / Open house arrangements / Presentations at such events / Video / Podcast / Training (advisory level) | D26: UF5

Sheet Validations (hidden)
B2: Company size | D2: Activity type:
B3: Individual | C3: Collaboration | D3: Individual | E3: Collaboration
B4: Public research and knowledge dissemination organization | C4: Public research and knowledge dissemination organization | D4: Research | E4: Research
B5: Private research and knowledge dissemination organization | C5: Private research and knowledge dissemination organization | D5: Development | E5: Development
B6: Small company | C6: Small company | D6: Demonstration | E6: Demonstration
B7: Medium-sized company | C7: Medium-sized company
B8: Large company | C8: Large company

Sheet Total project budget (hidden)
A1: Project title:
D2: Total project budget is filled in automatically
B3: Costs | C3: Of which: GUDP | D3: Of which: Independent financing | E3: Of which: GUDP - manual | F3: Of which: Other public funding - manual | G3: No. of hours
A4: Salary | B4: =B20+B36+B52+B68+B84+B100+B116+B132+B148+B164+B180+B196+B212+B228+B244+B260+B276+B292+B308+B324 -> 0 | C4: =C20+C36+C52+C68+C84+C100+C116+C132+C148+C164+C180+C196+C212+C228+C244+C260+C276+C292+C308+C324 -> 0 | D4: 0 | E4: 0 | F4: 0 | G4: 0 | J4: Journal no.: 34009-22-XXXX
A5: External assistance | B5: =B21+B37+B53+B69+B85+B101+B117+B133+B149+B165+B181+B197+B213+B229+B245+B261+B277+B293+B309+B325 -> 0 | C5: 0 | D5: 0 | E5: 0 | F5: 0 | G5: 0 | J5: Approved from: XX-XX-XXXX
A6: Other costs | B6: =B22+B38+B54+B70+B86+B102+B118+B134+B150+B166+B182+B198+B214+B230+B246+B262+B278+B294+B310+B326 -> 0 | C6: 0 | D6: 0 | E6: 0 | F6: 0 | G6: 0
A7: Apparatus/equipment | B7: =B23+B39+B55+B71+B87+B103+B119+B135+B151+B167+B183+B199+B215+B231+B247+B263+B279+B295+B311+B327 -> 0 | C7: 0 | D7: 0 | E7: 0 | F7: 0 | G7: 0
A8: Scrap value | B8: =B24+B40+B56+B72+B88+B104+B120+B136+B152+B168+B184+B200+B216+B232+B248+B264+B280+B296+B312+B328 -> 0 | C8: 0 | D8: 0 | E8: 0 | F8: 0 | G8: 0
A9: Income, if any | B9: =B25+B41+B57+B73+B89+B105+B121+B137+B153+B169+B185+B201+B217+B233+B249+B265+B281+B297+B313+B329 -> 0 | C9: 0 | D9: 0 | E9: 0 | F9: 0 | G9: 0
A10: Audit costs | B10: =B26+B42+B58+B74+B90+B106+B122+B138+B154+B170+B186+B202+B218+B234+B250+B266+B282+B298+B314+B330 -> 0 | C10: 0 | D10: =D26+D42+D58+D74+D90+D106+D122+D138+D154+D170+D186+D202+D218+D234+D250+D266+D282+D298+D314+D330 -> 0 | E10: 0 | F10: 0 | G10: 0
A11: Total excl. OH | B11: =B27+B43+B59+B75+B91+B107+B123+B139+B155+B171+B187+B203+B219+B235+B251+B267+B283+B299+B315+B331 -> 0 | C11: 0 | D11: 0 | E11: 0 | F11: 0 | G11: 0
A12: OH | B12: =B28+B44+B60+B76+B92+B108+B124+B140+B156+B172+B188+B204+B220+B236+B252+B268+B284+B300+B316+B332 -> 0 | C12: 0 | D12: 0 | E12: 0 | F12: 0 | G12: 0
A13: Total | B13: =B29+B45+B61+B77+B93+B109+B125+B141+B157+B173+B189+B205+B221+B237+B253+B269+B285+B301+B317+B333 -> 0 | C13: 0 | D13: 0 | E13: 0 | F13: 0 | G13: 0
A15: Company name: | C15: Main applicant | D15: Company size: | K15: Use this button to ensure, that you have filled in the data correctly. Red circles mark an error. Remember to look in the budget template to the left and in the grant percentage to the right.
A16: Activity type: | C16: =IF(IF(G16="",E16,G16)="",0,IF(G16="",E16,G16)) -> 0 | D16: Maximum subsidy rate: | E16: =_xlfn.IFNA(VLOOKUP(B16,'List of subsidy rates'!$A:$K,MATCH(CONCATENATE(E15," - ",$H$1),'List of subsidy rates'!$A$1:$K$1,0),FALSE),"") ->  | F16: Manual subsidy rate: | H16: =ROUND(IF(E15="",0,IF(LEFT(E15,6)="Public",B27*0.44,B20*0.3)),2) -> 0
A17: OH-percentage | B17: =IF(E15="","",IF(E15="Public research and knowledge dissemination organization",0.44,0.3)) ->  | C17: OH remaining amount | D17: =IF(E15="","",IF(LEFT(E15,6)="Public",B27*0.44-B28,B20*0.3-B28)) -> 
A19: =IF(B29>0,"Ja","") ->  | B19: Costs | C19: Of which: GUDP | D19: Of which: Independent financing | E19: Of which: GUDP - manual | F19: Of which: Other public funding - manual | G19: No. of hours | J19: Specification of sub-budget: | P19: =IF(Q29="","",IF(RIGHT(E15,10)="Virksomhed",IF(SUM(Q20:Q28)/COUNT(Q20:Q28)<>Q29,1,""),"")) ->  | Q19: subsidy rate
A20: Salary | C20: =IFERROR(IF($G$16="",IF(E20="",B20*$E$16,E20),IF(E20="",B20*$G$16,E20)),0) -> 0 | D20: =IFERROR(B20-C20-F20,0) -> 0 | H20: =IF(B20="",0,B20) -> 0 | I20: =IF($E$15<>"Public research and knowledge dissemination organization",0,IF(B20="",0,B20)) -> 0 | P20: =A20 -> Salary | Q20: =IFERROR(C20/B20,"") -> 
A21: External assistance | C21: 0 | D21: =IFERROR(B21-C21-F21,0) -> 0 | H21: =IF(B21="",0,B21) -> 0 | I21: 0 | P21: External assistance
A22: Other costs | C22: 0 | D22: 0 | H22: 0 | I22: 0 | P22: Other costs
A23: Apparatus/equipment | C23: 0 | D23: 0 | H23: 0 | I23: 0 | P23: Apparatus/equipment
A24: Scrap value | C24: 0 | D24: 0 | H24: 0 | I24: 0 | P24: Scrap value
A25: Income, if any | C25: 0 | D25: 0 | H25: 0 | I25: 0 | P25: Income, if any
A26: Audit costs | C26: 0 | D26: 0 | H26: 0 | I26: 0 | P26: Audit costs
A27: Total excl. OH | B27: =SUM(B20:B26) -> 0 | C27: 0 | D27: 0 | E27: 0 | F27: 0 | G27: =SUM(G20:G26) -> 0 | H27: 0 | I27: 0 | P27: Total excl. OH
A28: OH | C28: =IFERROR(IF($G$16="",IF(E28="",B28*$E$16,E28),IF(E28="",B28*$G$16,E28)),0) -> 0 | D28: =IFERROR(B28-C28-F28,0) -> 0 | H28: 0 | I28: 0 | P28: OH
A29: Total | B29: =SUM(B20:B26)+B28 -> 0 | C29: 0 | D29: 0 | E29: 0 | F29: 0 | G29: 0 | H29: 0 | I29: 0 | P29: Total
A31: Company name: | C31: Participant 2 | D31: Company size:
A32: Activity type: | C32: =IF(IF(G32="",E32,G32)="",0,IF(G32="",E32,G32)) -> 0 | D32: Maximum subsidy rate: | E32: =_xlfn.IFNA(VLOOKUP(B32,'List of subsidy rates'!$A:$K,MATCH(CONCATENATE(E31," - ",$H$1),'List of subsidy rates'!$A$1:$K$1,0),FALSE),"") ->  | F32: Manual subsidy rate: | H32: =ROUND(IF(E31="",0,IF(LEFT(E31,6)="Public",B43*0.44,B36*0.3)),2) -> 0
A33: OH-percentage | B33: =IF(E31="","",IF(E31="Public research and knowledge dissemination organization",0.44,0.3)) ->  | C33: OH remaining amount | D33: =IF(E31="","",IF(LEFT(E31,6)="Public",B43*0.44-B44,B36*0.3-B44)) -> 
A35: =IF(B45>0,"Ja","") ->  | B35: Costs | C35: Of which: GUDP | D35: Of which: Independent financing | E35: Of which: GUDP - manual | F35: Of which: Other public funding - manual | G35: No. of hours | J35: Specification of sub-budget: | P35: =IF(Q45="","",IF(RIGHT(E31,10)="Virksomhed",IF(SUM(Q36:Q44)/COUNT(Q36:Q44)<>Q45,1,""),"")) ->  | Q35: subsidy rate
A36: Salary | C36: =IFERROR(IF($G$32="",IF(E36="",B36*$E$32,E36),IF(E36="",B36*$G$32,E36)),0) -> 0 | D36: =IFERROR(B36-C36-F36,0) -> 0 | H36: =IF(B36="",0,B36) -> 0 | I36: =IF($E$31<>"Public research and knowledge dissemination organization",0,IF(B36="",0,B36)) -> 0 | P36: =A36 -> Salary | Q36: =IFERROR(C36/B36,"") -> 
A37: External assistance | C37: =IFERROR(IF($G$32="",IF(E37="",B37*$E$32,E37),IF(E37="",B37*$G$32,E37)),0) -> 0 | D37: =IFERROR(B37-C37-F37,0) -> 0 | H37: 0 | I37: 0 | P37: External assistance
A38: Other costs | C38: 0 | D38: 0 | H38: 0 | I38: 0 | P38: Other costs
A39: Apparatus/equipment | C39: 0 | D39: 0 | H39: 0 | I39: 0 | P39: Apparatus/equipment
A40: Scrap value | C40: 0 | D40: 0 | H40: 0 | I40: 0 | P40: Scrap value
A41: Income, if any | C41: 0 | D41: 0 | H41: 0 | I41: 0 | P41: Income, if any
A42: Audit costs | C42: 0 | D42: 0 | H42: 0 | I42: 0 | P42: Audit costs
A43: Total excl. OH | B43: =SUM(B36:B42) -> 0 | C43: =SUM(C36:C42) -> 0 | D43: =SUM(D36:D42) -> 0 | E43: =SUM(E36:E42) -> 0 | F43: =SUM(F36:F42) -> 0 | G43: =SUM(G36:G42) -> 0 | H43: =SUM(H36:H42) -> 0 | I43: 0 | P43: Total excl. OH
A44: OH | C44: =IFERROR(IF($G$32="",IF(E44="",B44*$E$32,E44),IF(E44="",B44*$G$32,E44)),0) -> 0 | D44: =IFERROR(B44-C44-F44,0) -> 0 | H44: =IF(B44="",0,B44) -> 0 | I44: 0 | P44: OH
A45: Total | B45: =SUM(B36:B42)+B44 -> 0 | C45: =SUM(C36:C42)+C44 -> 0 | D45: =SUM(D36:D42)+D44 -> 0 | E45: =SUM(E36:E42)+E44 -> 0 | F45: =SUM(F36:F42)+F44 -> 0 | G45: =SUM(G36:G42)+G44 -> 0 | H45: =SUM(H36:H42)+H44 -> 0 | I45: 0 | P45: Total
A47: Company name: | C47: Participant 3 | D47: Company size: | E47: Private research and knowledge dissemination organization
A48: Activity type: | B48: Research | C48: =IF(IF(G48="",E48,G48)="",0,IF(G48="",E48,G48)) -> 0 | D48: Maximum subsidy rate: | E48: =_xlfn.IFNA(VLOOKUP(B48,'List of subsidy rates'!$A:$K,MATCH(CONCATENATE(E47," - ",$H$1),'List of subsidy rates'!$A$1:$K$1,0),FALSE),"") ->  | F48: Manual subsidy rate: | H48: =ROUND(IF(E47="",0,IF(LEFT(E47,6)="Public",B59*0.44,B52*0.3)),2) -> 0
A49: OH-percentage | B49: =IF(E47="","",IF(E47="Public research and knowledge dissemination organization",0.44,0.3)) -> 0.3 | C49: OH remaining amount | D49: =IF(E47="","",IF(LEFT(E47,6)="Public",B59*0.44-B60,B52*0.3-B60)) -> 0
A51: =IF(B61>0,"Ja","") ->  | B51: Costs | C51: Of which: GUDP | D51: Of which: Independent financing | E51: Of which: GUDP - manual | F51: Of which: Other public funding - manual | G51: No. of hours | J51: Specification of sub-budget: | P51: =IF(Q61="","",IF(RIGHT(E47,10)="Virksomhed",IF(SUM(Q52:Q60)/COUNT(Q52:Q60)<>Q61,1,""),"")) ->  | Q51: subsidy rate
A52: Salary | C52: =IFERROR(IF($G$48="",IF(E52="",B52*$E$48,E52),IF(E52="",B52*$G$48,E52)),0) -> 0 | D52: =IFERROR(B52-C52-F52,0) -> 0 | H52: =IF(B52="",0,B52) -> 0 | I52: =IF($E$47<>"Public research and knowledge dissemination organization",0,IF(B52="",0,B52)) -> 0 | P52: =A52 -> Salary | Q52: =IFERROR(C52/B52,"") -> 
A53: External assistance | C53: 0 | D53: =IFERROR(B53-C53-F53,0) -> 0 | H53: 0 | I53: 0 | P53: External assistance
A54: Other costs | C54: 0 | D54: 0 | H54: 0 | I54: 0 | P54: Other costs
A55: Apparatus/equipment | C55: 0 | D55: 0 | H55: 0 | I55: 0 | P55: Apparatus/equipment
A56: Scrap value | C56: 0 | D56: 0 | H56: 0 | I56: 0 | P56: Scrap value
A57: Income, if any | C57: 0 | D57: 0 | H57: 0 | I57: 0 | P57: Income, if any
A58: Audit costs | C58: 0 | D58: 0 | H58: 0 | I58: 0 | P58: Audit costs
A59: Total excl. OH | B59: =SUM(B52:B58) -> 0 | C59: =SUM(C52:C58) -> 0 | D59: =SUM(D52:D58) -> 0 | E59: =SUM(E52:E58) -> 0 | F59: =SUM(F52:F58) -> 0 | G59: =SUM(G52:G58) -> 0 | H59: =SUM(H52:H58) -> 0 | I59: 0 | P59: Total excl. OH
A60: OH | C60: =IFERROR(IF($G$48="",IF(E60="",B60*$E$48,E60),IF(E60="",B60*$G$48,E60)),0) -> 0 | D60: =IFERROR(B60-C60-F60,0) -> 0 | H60: =IF(B60="",0,B60) -> 0 | I60: 0 | P60: OH
A61: Total | B61: =SUM(B52:B58)+B60 -> 0 | C61: =SUM(C52:C58)+C60 -> 0 | D61: =SUM(D52:D58)+D60 -> 0 | E61: =SUM(E52:E58)+E60 -> 0 | F61: =SUM(F52:F58)+F60 -> 0 | G61: =SUM(G52:G58)+G60 -> 0 | H61: =SUM(H52:H58)+H60 -> 0 | I61: 0 | P61: Total
A63: Company name: | C63: Participant 4 | D63: Company size:
A64: Activity type: | C64: =IF(IF(G64="",E64,G64)="",0,IF(G64="",E64,G64)) -> 0 | D64: Maximum subsidy rate: | E64: =_xlfn.IFNA(VLOOKUP(B64,'List of subsidy rates'!$A:$K,MATCH(CONCATENATE(E63," - ",$H$1),'List of subsidy rates'!$A$1:$K$1,0),FALSE),"") ->  | F64: Manual subsidy rate: | H64: =ROUND(IF(E63="",0,IF(LEFT(E63,6)="Public",B75*0.44,B68*0.3)),2) -> 0
A65: OH-percentage | B65: =IF(E63="","",IF(E63="Public research and knowledge dissemination organization",0.44,0.3)) ->  | C65: OH remaining amount | D65: =IF(E63="","",IF(LEFT(E63,6)="Public",B75*0.44-B76,B68*0.3-B76)) -> 
A67: =IF(B77>0,"Ja","") ->  | B67: Costs | C67: Of which: GUDP | D67: Of which: Independent financing | E67: Of which: GUDP - manual | F67: Of which: Other public funding - manual | G67: No. of hours | J67: Specification of sub-budget: | P67: =IF(Q77="","",IF(RIGHT(E63,10)="Virksomhed",IF(SUM(Q68:Q76)/COUNT(Q68:Q76)<>Q77,1,""),"")) ->  | Q67: subsidy rate
A68: Salary | C68: =IFERROR(IF($G$64="",IF(E68="",B68*$E$64,E68),IF(E68="",B68*$G$64,E68)),0) -> 0 | D68: =IFERROR(B68-C68,-F680) -> 0 | H68: =IF(B68="",0,B68) -> 0 | I68: =IF($E$63<>"Public research and knowledge dissemination organization",0,IF(B68="",0,B68)) -> 0 | P68: =A68 -> Salary | Q68: =IFERROR(C68/B68,"") -> 
A69: External assistance | C69: 0 | D69: =IFERROR(B69-C69,-F681) -> 0 | H69: 0 | I69: 0 | P69: External assistance
A70: Other costs | C70: 0 | D70: 0 | H70: 0 | I70: 0 | P70: Other costs
A71: Apparatus/equipment | C71: 0 | D71: 0 | H71: 0 | I71: 0 | P71: Apparatus/equipment
A72: Scrap value | C72: 0 | D72: 0 | H72: 0 | I72: 0 | P72: Scrap value
A73: Income, if any | C73: 0 | D73: 0 | H73: 0 | I73: 0 | P73: Income, if any
A74: Audit costs | C74: 0 | D74: 0 | H74: 0 | I74: 0 | P74: Audit costs
A75: Total excl. OH | B75: =SUM(B68:B74) -> 0 | C75: =SUM(C68:C74) -> 0 | D75: =SUM(D68:D74) -> 0 | E75: =SUM(E68:E74) -> 0 | F75: =SUM(F68:F74) -> 0 | G75: =SUM(G68:G74) -> 0 | H75: =SUM(H68:H74) -> 0 | I75: 0 | P75: Total excl. OH
A76: OH | C76: =IFERROR(IF($G$64="",IF(E76="",B76*$E$64,E76),IF(E76="",B76*$G$64,E76)),0) -> 0 | D76: =IFERROR(B76-C76-F76,0) -> 0 | H76: =IF(B76="",0,B76) -> 0 | I76: 0 | P76: OH
A77: Total | B77: =SUM(B68:B74)+B76 -> 0 | C77: =SUM(C68:C74)+C76 -> 0 | D77: =SUM(D68:D74)+D76 -> 0 | E77: =SUM(E68:E74)+E76 -> 0 | F77: =SUM(F68:F74)+F76 -> 0 | G77: =SUM(G68:G74)+G76 -> 0 | H77: =SUM(H68:H74)+H76 -> 0 | I77: 0 | P77: Total
A79: Company name: | C79: Participant 5 | D79: Company size:
A80: Activity type: | C80: =IF(IF(G80="",E80,G80)="",0,IF(G80="",E80,G80)) -> 0 | D80: Maximum subsidy rate: | E80: =_xlfn.IFNA(VLOOKUP(B80,'List of subsidy rates'!$A:$K,MATCH(CONCATENATE(E79," - ",$H$1),'List of subsidy rates'!$A$1:$K$1,0),FALSE),"") ->  | F80: Manual subsidy rate: | H80: =ROUND(IF(E79="",0,IF(LEFT(E79,6)="Public",B91*0.44,B84*0.3)),2) -> 0
A81: OH-percentage | B81: =IF(E79="","",IF(E79="Public research and knowledge dissemination organization",0.44,0.3)) ->  | C81: OH remaining amount | D81: =IF(E79="","",IF(LEFT(E79,6)="Public",B91*0.44-B92,B84*0.3-B92)) -> 
A83: =IF(B93>0,"Ja","") ->  | B83: Costs | C83: Of which: GUDP | D83: Of which: Independent financing | E83: Of which: GUDP - manual | F83: Of which: Other public funding - manual | G83: No. of hours | J83: Specification of sub-budget: | P83: =IF(Q93="","",IF(RIGHT(E79,10)="Virksomhed",IF(SUM(Q84:Q92)/COUNT(Q84:Q92)<>Q93,1,""),"")) ->  | Q83: subsidy rate
A84: Salary | C84: =IFERROR(IF($G$80="",IF(E84="",B84*$E$80,E84),IF(E84="",B84*$G$80,E84)),0) -> 0 | D84: =IFERROR(B84-C84-F84,0) -> 0 | H84: =IF(B84="",0,B84) -> 0 | I84: =IF($E$79<>"Public research and knowledge dissemination organization",0,IF(B84="",0,B84)) -> 0 | P84: =A84 -> Salary | Q84: =IFERROR(C84/B84,"") -> 
A85: External assistance | C85: 0 | D85: =IFERROR(B85-C85-F85,0) -> 0 | H85: 0 | I85: 0 | P85: External assistance
A86: Other costs | C86: 0 | D86: 0 | H86: 0 | I86: 0 | P86: Other costs
A87: Apparatus/equipment | C87: 0 | D87: 0 | H87: 0 | I87: 0 | P87: Apparatus/equipment
A88: Scrap value | C88: 0 | D88: 0 | H88: 0 | I88: 0 | P88: Scrap value
A89: Income, if any | C89: 0 | D89: 0 | H89: 0 | I89: 0 | P89: Income, if any
A90: Audit costs | C90: 0 | D90: 0 | H90: 0 | I90: 0 | P90: Audit costs
A91: Total excl. OH | B91: =SUM(B84:B90) -> 0 | C91: =SUM(C84:C90) -> 0 | D91: =SUM(D84:D90) -> 0 | E91: =SUM(E84:E90) -> 0 | F91: =SUM(F84:F90) -> 0 | G91: =SUM(G84:G90) -> 0 | H91: =SUM(H84:H90) -> 0 | I91: 0 | P91: Total excl. OH
A92: OH | C92: =IFERROR(IF($G$80="",IF(E92="",B92*$E$80,E92),IF(E92="",B92*$G$80,E92)),0) -> 0 | D92: =IFERROR(B92-C92-F92,0) -> 0 | H92: =IF(B92="",0,B92) -> 0 | I92: 0 | P92: OH
A93: Total | B93: =SUM(B84:B90)+B92 -> 0 | C93: =SUM(C84:C90)+C92 -> 0 | D93: =SUM(D84:D90)+D92 -> 0 | E93: =SUM(E84:E90)+E92 -> 0 | F93: =SUM(F84:F90)+F92 -> 0 | G93: =SUM(G84:G90)+G92 -> 0 | H93: =SUM(H84:H90)+H92 -> 0 | I93: 0 | P93: Total
A95: Company name: | C95: Participant 6 | D95: Company size:
A96: Activity type: | C96: =IF(IF(G96="",E96,G96)="",0,IF(G96="",E96,G96)) -> 0 | D96: Maximum subsidy rate: | E96: =_xlfn.IFNA(VLOOKUP(B96,'List of subsidy rates'!$A:$K,MATCH(CONCATENATE(E95," - ",$H$1),'List of subsidy rates'!$A$1:$K$1,0),FALSE),"") ->  | F96: Manual subsidy rate: | H96: =ROUND(IF(E95="",0,IF(LEFT(E95,6)="Public",B107*0.44,B100*0.3)),2) -> 0
A97: OH-percentage | B97: =IF(E95="","",IF(E95="Public research and knowledge dissemination organization",0.44,0.3)) ->  | C97: OH remaining amount | D97: =IF(E95="","",IF(LEFT(E95,6)="Public",B107*0.44-B108,B100*0.3-B108)) -> 
A99: =IF(B109>0,"Ja","") ->  | B99: Costs | C99: Of which: GUDP | D99: Of which: Independent financing | E99: Of which: GUDP - manual | F99: Of which: Other public funding - manual | G99: No. of hours | J99: Specification of sub-budget: | P99: =IF(Q109="","",IF(RIGHT(E95,10)="Virksomhed",IF(SUM(Q100:Q108)/COUNT(Q100:Q108)<>Q109,1,""),"")) ->  | Q99: subsidy rate
A100: Salary | C100: =IFERROR(IF($G$96="",IF(E100="",B100*$E$96,E100),IF(E100="",B100*$G$96,E100)),0) -> 0 | D100: =IFERROR(B100-C100-F100,0) -> 0 | H100: =IF(B100="",0,B100) -> 0 | I100: =IF($E$95<>"Public research and knowledge dissemination organization",0,IF(B100="",0,B100)) -> 0 | P100: =A100 -> Salary | Q100: =IFERROR(C100/B100,"") -> 
A101: External assistance | C101: 0 | D101: =IFERROR(B101-C101-F101,0) -> 0 | H101: 0 | I101: 0 | P101: External assistance
A102: Other costs | C102: 0 | D102: 0 | H102: 0 | I102: 0 | P102: Other costs
A103: Apparatus/equipment | C103: 0 | D103: 0 | H103: 0 | I103: 0 | P103: Apparatus/equipment
A104: Scrap value | C104: 0 | D104: 0 | H104: 0 | I104: 0 | P104: Scrap value
A105: Income, if any | C105: 0 | D105: 0 | H105: 0 | I105: 0 | P105: Income, if any
A106: Audit costs | C106: 0 | D106: 0 | H106: 0 | I106: 0 | P106: Audit costs
A107: Total excl. OH | B107: =SUM(B100:B106) -> 0 | C107: =SUM(C100:C106) -> 0 | D107: =SUM(D100:D106) -> 0 | E107: =SUM(E100:E106) -> 0 | F107: =SUM(F100:F106) -> 0 | G107: =SUM(G100:G106) -> 0 | H107: =SUM(H100:H106) -> 0 | I107: 0 | P107: Total excl. OH
A108: OH | C108: =IFERROR(IF($G$96="",IF(E108="",B108*$E$96,E108),IF(E108="",B108*$G$96,E108)),0) -> 0 | D108: =IFERROR(B108-C108-F108,0) -> 0 | H108: =IF(B108="",0,B108) -> 0 | I108: 0 | P108: OH
A109: Total | B109: =SUM(B100:B106)+B108 -> 0 | C109: =SUM(C100:C106)+C108 -> 0 | D109: =SUM(D100:D106)+D108 -> 0 | E109: =SUM(E100:E106)+E108 -> 0 | F109: =SUM(F100:F106)+F108 -> 0 | G109: =SUM(G100:G106)+G108 -> 0 | H109: =SUM(H100:H106)+H108 -> 0 | I109: 0 | P109: Total
A111: Company name: | C111: Participant 7 | D111: Company size:
A112: Activity type: | C112: =IF(IF(G112="",E112,G112)="",0,IF(G112="",E112,G112)) -> 0 | D112: Maximum subsidy rate: | E112: =_xlfn.IFNA(VLOOKUP(B112,'List of subsidy rates'!$A:$K,MATCH(CONCATENATE(E111," - ",$H$1),'List of subsidy rates'!$A$1:$K$1,0),FALSE),"") ->  | F112: Manual subsidy rate: | H112: =ROUND(IF(E111="",0,IF(LEFT(E111,6)="Public",B123*0.44,B116*0.3)),2) -> 0
A113: OH-percentage | B113: =IF(E111="","",IF(E111="Public research and knowledge dissemination organization",0.44,0.3)) ->  | C113: OH remaining amount | D113: =IF(E111="","",IF(LEFT(E111,6)="Public",B123*0.44-B124,B116*0.3-B124)) -> 
A115: =IF(B125>0,"Ja","") ->  | B115: Costs | C115: Of which: GUDP | D115: Of which: Independent financing | E115: Of which: GUDP - manual | F115: Of which: Other public funding - manual | G115: No. of hours | J115: Specification of sub-budget: | P115: =IF(Q125="","",IF(RIGHT(E111,10)="Virksomhed",IF(SUM(Q116:Q124)/COUNT(Q116:Q124)<>Q125,1,""),"")) ->  | Q115: subsidy rate
A116: Salary | C116: =IFERROR(IF($G$112="",IF(E116="",B116*$E$112,E116),IF(E116="",B116*$G$112,E116)),0) -> 0 | D116: =IFERROR(B116-C116-F116,0) -> 0 | H116: =IF(B116="",0,B116) -> 0 | I116: =IF($E$111<>"Public research and knowledge dissemination organization",0,IF(B116="",0,B116)) -> 0 | P116: =A116 -> Salary | Q116: =IFERROR(C116/B116,"") -> 
A117: External assistance | C117: 0 | D117: =IFERROR(B117-C117-F117,0) -> 0 | H117: 0 | I117: 0 | P117: External assistance
A118: Other costs | C118: 0 | D118: 0 | H118: 0 | I118: 0 | P118: Other costs
A119: Apparatus/equipment | C119: 0 | D119: 0 | H119: 0 | I119: 0 | P119: Apparatus/equipment
A120: Scrap value | C120: 0 | D120: 0 | H120: 0 | I120: 0 | P120: Scrap value
A121: Income, if any | C121: 0 | D121: 0 | H121: 0 | I121: 0 | P121: Income, if any
A122: Audit costs | C122: 0 | D122: 0 | H122: 0 | I122: 0 | P122: Audit costs
A123: Total excl. OH | B123: =SUM(B116:B122) -> 0 | C123: =SUM(C116:C122) -> 0 | D123: =SUM(D116:D122) -> 0 | E123: =SUM(E116:E122) -> 0 | F123: =SUM(F116:F122) -> 0 | G123: =SUM(G116:G122) -> 0 | H123: =SUM(H116:H122) -> 0 | I123: 0 | P123: Total excl. OH
A124: OH | C124: =IFERROR(IF($G$112="",IF(E124="",B124*$E$112,E124),IF(E124="",B124*$G$112,E124)),0) -> 0 | D124: =IFERROR(B124-C124-F124,0) -> 0 | H124: =IF(B124="",0,B124) -> 0 | I124: 0 | P124: OH
A125: Total | B125: =SUM(B116:B122)+B124 -> 0 | C125: =SUM(C116:C122)+C124 -> 0 | D125: =SUM(D116:D122)+D124 -> 0 | E125: =SUM(E116:E122)+E124 -> 0 | F125: =SUM(F116:F122)+F124 -> 0 | G125: =SUM(G116:G122)+G124 -> 0 | H125: =SUM(H116:H122)+H124 -> 0 | I125: 0 | P125: Total
A127: Company name: | C127: Participant 8 | D127: Company size:
A128: Activity type: | C128: =IF(IF(G128="",E128,G128)="",0,IF(G128="",E128,G128)) -> 0 | D128: Maximum subsidy rate: | E128: =_xlfn.IFNA(VLOOKUP(B128,'List of subsidy rates'!$A:$K,MATCH(CONCATENATE(E127," - ",$H$1),'List of subsidy rates'!$A$1:$K$1,0),FALSE),"") ->  | F128: Manual subsidy rate: | H128: =ROUND(IF(E127="",0,IF(LEFT(E127,6)="Public",B139*0.44,B132*0.3)),2) -> 0
A129: OH-percentage | B129: =IF(E127="","",IF(E127="Public research and knowledge dissemination organization",0.44,0.3)) ->  | C129: OH remaining amount | D129: =IF(E127="","",IF(LEFT(E127,6)="Public",B139*0.44-B140,B132*0.3-B140)) -> 
A131: =IF(B141>0,"Ja","") ->  | B131: Costs | C131: Of which: GUDP | D131: Of which: Independent financing | E131: Of which: GUDP - manual | F131: Of which: Other public funding - manual | G131: No. of hours | J131: Specification of sub-budget: | P131: =IF(Q141="","",IF(RIGHT(E127,10)="Virksomhed",IF(SUM(Q132:Q140)/COUNT(Q132:Q140)<>Q141,1,""),"")) ->  | Q131: subsidy rate
A132: Salary | C132: =IFERROR(IF($G$128="",IF(E132="",B132*$E$128,E132),IF(E132="",B132*$G$128,E132)),0) -> 0 | D132: =IFERROR(B132-C132-F132,0) -> 0 | H132: =IF(B132="",0,B132) -> 0 | I132: =IF($E$127<>"Public research and knowledge dissemination organization",0,IF(B132="",0,B132)) -> 0 | P132: =A132 -> Salary | Q132: =IFERROR(C132/B132,"") -> 
A133: External assistance | C133: 0 | D133: =IFERROR(B133-C133-F133,0) -> 0 | H133: 0 | I133: 0 | P133: External assistance
A134: Other costs | C134: 0 | D134: 0 | H134: 0 | I134: 0 | P134: Other costs
A135: Apparatus/equipment | C135: 0 | D135: 0 | H135: 0 | I135: 0 | P135: Apparatus/equipment
A136: Scrap value | C136: 0 | D136: 0 | H136: 0 | I136: 0 | P136: Scrap value
A137: Income, if any | C137: 0 | D137: 0 | H137: 0 | I137: 0 | P137: Income, if any
A138: Audit costs | C138: 0 | D138: 0 | H138: 0 | I138: 0 | P138: Audit costs
A139: Total excl. OH | B139: =SUM(B132:B138) -> 0 | C139: =SUM(C132:C138) -> 0 | D139: =SUM(D132:D138) -> 0 | E139: =SUM(E132:E138) -> 0 | F139: =SUM(F132:F138) -> 0 | G139: =SUM(G132:G138) -> 0 | H139: =SUM(H132:H138) -> 0 | I139: 0 | P139: Total excl. OH
A140: OH | C140: =IFERROR(IF($G$128="",IF(E140="",B140*$E$128,E140),IF(E140="",B140*$G$128,E140)),0) -> 0 | D140: =IFERROR(B140-C140-F140,0) -> 0 | H140: =IF(B140="",0,B140) -> 0 | I140: 0 | P140: OH
A141: Total | B141: =SUM(B132:B138)+B140 -> 0 | C141: =SUM(C132:C138)+C140 -> 0 | D141: =SUM(D132:D138)+D140 -> 0 | E141: =SUM(E132:E138)+E140 -> 0 | F141: =SUM(F132:F138)+F140 -> 0 | G141: =SUM(G132:G138)+G140 -> 0 | H141: =SUM(H132:H138)+H140 -> 0 | I141: 0 | P141: Total
A143: Company name: | C143: Participant 9 | D143: Company size:
A144: Activity type: | C144: =IF(IF(G144="",E144,G144)="",0,IF(G144="",E144,G144)) -> 0 | D144: Maximum subsidy rate: | E144: =_xlfn.IFNA(VLOOKUP(B144,'List of subsidy rates'!$A:$K,MATCH(CONCATENATE(E143," - ",$H$1),'List of subsidy rates'!$A$1:$K$1,0),FALSE),"") ->  | F144: Manual subsidy rate: | H144: =ROUND(IF(E143="",0,IF(LEFT(E143,6)="Public",B155*0.44,B148*0.3)),2) -> 0
A145: OH-percentage | B145: =IF(E143="","",IF(E143="Public research and knowledge dissemination organization",0.44,0.3)) ->  | C145: OH remaining amount | D145: =IF(E143="","",IF(LEFT(E143,6)="Public",B155*0.44-B156,B148*0.3-B156)) -> 
A147: =IF(B157>0,"Ja","") ->  | B147: Costs | C147: Of which: GUDP | D147: Of which: Independent financing | E147: Of which: GUDP - manual | F147: Of which: Other public funding - manual | G147: No. of hours | J147: Specification of sub-budget: | P147: =IF(Q157="","",IF(RIGHT(E143,10)="Virksomhed",IF(SUM(Q148:Q156)/COUNT(Q148:Q156)<>Q157,1,""),"")) ->  | Q147: subsidy rate
A148: Salary | C148: =IFERROR(IF($G$144="",IF(E148="",B148*$E$144,E148),IF(E148="",B148*$G$144,E148)),0) -> 0 | D148: =IFERROR(B148-C148-F148,0) -> 0 | H148: =IF(B148="",0,B148) -> 0 | I148: =IF($E$143<>"Public research and knowledge dissemination organization",0,IF(B148="",0,B148)) -> 0 | P148: =A148 -> Salary | Q148: =IFERROR(C148/B148,"") -> 
A149: External assistance | C149: 0 | D149: =IFERROR(B149-C149-F149,0) -> 0 | H149: 0 | I149: 0 | P149: External assistance
A150: Other costs | C150: 0 | D150: 0 | H150: 0 | I150: 0 | P150: Other costs
A151: Apparatus/equipment | C151: 0 | D151: 0 | H151: 0 | I151: 0 | P151: Apparatus/equipment
A152: Scrap value | C152: 0 | D152: 0 | H152: 0 | I152: 0 | P152: Scrap value
A153: Income, if any | C153: 0 | D153: 0 | H153: 0 | I153: 0 | P153: Income, if any
A154: Audit costs | C154: 0 | D154: 0 | H154: 0 | I154: 0 | P154: Audit costs
A155: Total excl. OH | B155: =SUM(B148:B154) -> 0 | C155: =SUM(C148:C154) -> 0 | D155: =SUM(D148:D154) -> 0 | E155: =SUM(E148:E154) -> 0 | F155: =SUM(F148:F154) -> 0 | G155: =SUM(G148:G154) -> 0 | H155: =SUM(H148:H154) -> 0 | I155: 0 | P155: Total excl. OH
A156: OH | C156: =IFERROR(IF($G$144="",IF(E156="",B156*$E$144,E156),IF(E156="",B156*$G$144,E156)),0) -> 0 | D156: =IFERROR(B156-C156-F156,0) -> 0 | H156: =IF(B156="",0,B156) -> 0 | I156: 0 | P156: OH
A157: Total | B157: =SUM(B148:B154)+B156 -> 0 | C157: =SUM(C148:C154)+C156 -> 0 | D157: =SUM(D148:D154)+D156 -> 0 | E157: =SUM(E148:E154)+E156 -> 0 | F157: =SUM(F148:F154)+F156 -> 0 | G157: =SUM(G148:G154)+G156 -> 0 | H157: =SUM(H148:H154)+H156 -> 0 | I157: 0 | P157: Total
A159: Company name: | C159: Participant 10 | D159: Company size:
A160: Activity type: | C160: =IF(IF(G160="",E160,G160)="",0,IF(G160="",E160,G160)) -> 0 | D160: Maximum subsidy rate: | E160: =_xlfn.IFNA(VLOOKUP(B160,'List of subsidy rates'!$A:$K,MATCH(CONCATENATE(E159," - ",$H$1),'List of subsidy rates'!$A$1:$K$1,0),FALSE),"") ->  | F160: Manual subsidy rate: | H160: =ROUND(IF(E159="",0,IF(LEFT(E159,6)="Public",B171*0.44,B164*0.3)),2) -> 0
A161: OH-percentage | B161: =IF(E159="","",IF(E159="Public research and knowledge dissemination organization",0.44,0.3)) ->  | C161: OH remaining amount | D161: =IF(E159="","",IF(LEFT(E159,6)="Public",B171*0.44-B172,B164*0.3-B172)) -> 
A163: =IF(B173>0,"Ja","") ->  | B163: Costs | C163: Of which: GUDP | D163: Of which: Independent financing | E163: Of which: GUDP - manual | F163: Of which: Other public funding - manual | G163: No. of hours | J163: Specification of sub-budget: | P163: =IF(Q173="","",IF(RIGHT(E159,10)="Virksomhed",IF(SUM(Q164:Q172)/COUNT(Q164:Q172)<>Q173,1,""),"")) ->  | Q163: subsidy rate
A164: Salary | C164: =IFERROR(IF($G$160="",IF(E164="",B164*$E$160,E164),IF(E164="",B164*$G$160,E164)),0) -> 0 | D164: =IFERROR(B164-C164-F164,0) -> 0 | H164: =IF(B164="",0,B164) -> 0 | I164: =IF($E$159<>"Public research and knowledge dissemination organization",0,IF(B164="",0,B164)) -> 0 | P164: =A164 -> Salary | Q164: =IFERROR(C164/B164,"") -> 
A165: External assistance | C165: 0 | D165: =IFERROR(B165-C165-F165,0) -> 0 | H165: 0 | I165: 0 | P165: External assistance
A166: Other costs | C166: 0 | D166: 0 | H166: 0 | I166: 0 | P166: Other costs
A167: Apparatus/equipment | C167: 0 | D167: 0 | H167: 0 | I167: 0 | P167: Apparatus/equipment
A168: Scrap value | C168: 0 | D168: 0 | H168: 0 | I168: 0 | P168: Scrap value
A169: Income, if any | C169: 0 | D169: 0 | H169: 0 | I169: 0 | P169: Income, if any
A170: Audit costs | C170: 0 | D170: 0 | H170: 0 | I170: 0 | P170: Audit costs
A171: Total excl. OH | B171: =SUM(B164:B170) -> 0 | C171: =SUM(C164:C170) -> 0 | D171: =SUM(D164:D170) -> 0 | E171: =SUM(E164:E170) -> 0 | F171: =SUM(F164:F170) -> 0 | G171: =SUM(G164:G170) -> 0 | H171: =SUM(H164:H170) -> 0 | I171: 0 | P171: Total excl. OH
A172: OH | C172: =IFERROR(IF($G$160="",IF(E172="",B172*$E$160,E172),IF(E172="",B172*$G$160,E172)),0) -> 0 | D172: =IFERROR(B172-C172-F172,0) -> 0 | H172: =IF(B172="",0,B172) -> 0 | I172: 0 | P172: OH
A173: Total | B173: =SUM(B164:B170)+B172 -> 0 | C173: =SUM(C164:C170)+C172 -> 0 | D173: =SUM(D164:D170)+D172 -> 0 | E173: =SUM(E164:E170)+E172 -> 0 | F173: =SUM(F164:F170)+F172 -> 0 | G173: =SUM(G164:G170)+G172 -> 0 | H173: =SUM(H164:H170)+H172 -> 0 | I173: 0 | P173: Total
A175: Company name: | C175: Participant 11 | D175: Company size:
A176: Activity type: | C176: =IF(IF(G176="",E176,G176)="",0,IF(G176="",E176,G176)) -> 0 | D176: Maximum subsidy rate: | E176: =_xlfn.IFNA(VLOOKUP(B176,'List of subsidy rates'!$A:$K,MATCH(CONCATENATE(E175," - ",$H$1),'List of subsidy rates'!$A$1:$K$1,0),FALSE),"") ->  | F176: Manual subsidy rate: | H176: =ROUND(IF(E175="",0,IF(LEFT(E175,6)="Public",B187*0.44,B180*0.3)),2) -> 0
A177: OH-percentage | B177: =IF(E175="","",IF(E175="Public research and knowledge dissemination organization",0.44,0.3)) ->  | C177: OH remaining amount | D177: =IF(E175="","",IF(LEFT(E175,6)="Public",B187*0.44-B188,B180*0.3-B188)) -> 
A179: =IF(B189>0,"Ja","") ->  | B179: Costs | C179: Of which: GUDP | D179: Of which: Independent financing | E179: Of which: GUDP - manual | F179: Of which: Other public funding - manual | G179: No. of hours | J179: Specification of sub-budget: | P179: =IF(Q189="","",IF(RIGHT(E175,10)="Virksomhed",IF(SUM(Q180:Q188)/COUNT(Q180:Q188)<>Q189,1,""),"")) ->  | Q179: subsidy rate
A180: Salary | C180: =IFERROR(IF($G$176="",IF(E180="",B180*$E$176,E180),IF(E180="",B180*$G$176,E180)),0) -> 0 | D180: =IFERROR(B180-C180-F180,0) -> 0 | H180: =IF(B180="",0,B180) -> 0 | I180: =IF($E$175<>"Public research and knowledge dissemination organization",0,IF(B180="",0,B180)) -> 0 | P180: =A180 -> Salary | Q180: =IFERROR(C180/B180,"") -> 
A181: External assistance | C181: 0 | D181: =IFERROR(B181-C181-F181,0) -> 0 | H181: 0 | I181: 0 | P181: External assistance
A182: Other costs | C182: 0 | D182: 0 | H182: 0 | I182: 0 | P182: Other costs
A183: Apparatus/equipment | C183: 0 | D183: 0 | H183: 0 | I183: 0 | P183: Apparatus/equipment
A184: Scrap value | C184: 0 | D184: 0 | H184: 0 | I184: 0 | P184: Scrap value
A185: Income, if any | C185: 0 | D185: 0 | H185: 0 | I185: 0 | P185: Income, if any
A186: Audit costs | C186: 0 | D186: 0 | H186: 0 | I186: 0 | P186: Audit costs
A187: Total excl. OH | B187: =SUM(B180:B186) -> 0 | C187: =SUM(C180:C186) -> 0 | D187: =SUM(D180:D186) -> 0 | E187: =SUM(E180:E186) -> 0 | F187: =SUM(F180:F186) -> 0 | G187: =SUM(G180:G186) -> 0 | H187: =SUM(H180:H186) -> 0 | I187: 0 | P187: Total excl. OH
A188: OH | C188: =IFERROR(IF($G$176="",IF(E188="",B188*$E$176,E188),IF(E188="",B188*$G$176,E188)),0) -> 0 | D188: =IFERROR(B188-C188-F188,0) -> 0 | H188: =IF(B188="",0,B188) -> 0 | I188: 0 | P188: OH
A189: Total | B189: =SUM(B180:B186)+B188 -> 0 | C189: =SUM(C180:C186)+C188 -> 0 | D189: =SUM(D180:D186)+D188 -> 0 | E189: =SUM(E180:E186)+E188 -> 0 | F189: =SUM(F180:F186)+F188 -> 0 | G189: =SUM(G180:G186)+G188 -> 0 | H189: =SUM(H180:H186)+H188 -> 0 | I189: 0 | P189: Total
A191: Company name: | C191: Participant 12 | D191: Company size:
A192: Activity type: | C192: =IF(IF(G192="",E192,G192)="",0,IF(G192="",E192,G192)) -> 0 | D192: Maximum subsidy rate: | E192: =_xlfn.IFNA(VLOOKUP(B192,'List of subsidy rates'!$A:$K,MATCH(CONCATENATE(E191," - ",$H$1),'List of subsidy rates'!$A$1:$K$1,0),FALSE),"") ->  | F192: Manual subsidy rate: | H192: =ROUND(IF(E191="",0,IF(LEFT(E191,6)="Public",B203*0.44,B196*0.3)),2) -> 0
A193: OH-percentage | B193: =IF(E191="","",IF(E191="Public research and knowledge dissemination organization",0.44,0.3)) ->  | C193: OH remaining amount | D193: =IF(E191="","",IF(LEFT(E191,6)="Public",B203*0.44-B204,B196*0.3-B204)) -> 
A195: =IF(B205>0,"Ja","") ->  | B195: Costs | C195: Of which: GUDP | D195: Of which: Independent financing | E195: Of which: GUDP - manual | F195: Of which: Other public funding - manual | G195: No. of hours | J195: Specification of sub-budget: | P195: =IF(Q205="","",IF(RIGHT(E191,10)="Virksomhed",IF(SUM(Q196:Q204)/COUNT(Q196:Q204)<>Q205,1,""),"")) ->  | Q195: subsidy rate
A196: Salary | C196: =IFERROR(IF($G$192="",IF(E196="",B196*$E$192,E196),IF(E196="",B196*$G$192,E196)),0) -> 0 | D196: =IFERROR(B196-C196-F196,0) -> 0 | H196: =IF(B196="",0,B196) -> 0 | I196: =IF($E$191<>"Public research and knowledge dissemination organization",0,IF(B196="",0,B196)) -> 0 | P196: =A196 -> Salary | Q196: =IFERROR(C196/B196,"") -> 
A197: External assistance | C197: 0 | D197: =IFERROR(B197-C197-F197,0) -> 0 | H197: 0 | I197: 0 | P197: External assistance
A198: Other costs | C198: 0 | D198: 0 | H198: 0 | I198: 0 | P198: Other costs
A199: Apparatus/equipment | C199: 0 | D199: 0 | H199: 0 | I199: 0 | P199: Apparatus/equipment
A200: Scrap value | C200: 0 | D200: 0 | H200: 0 | I200: 0 | P200: Scrap value
A201: Income, if any | C201: 0 | D201: 0 | H201: 0 | I201: 0 | P201: Income, if any
A202: Audit costs | C202: 0 | D202: 0 | H202: 0 | I202: 0 | P202: Audit costs
A203: Total excl. OH | B203: =SUM(B196:B202) -> 0 | C203: =SUM(C196:C202) -> 0 | D203: =SUM(D196:D202) -> 0 | E203: =SUM(E196:E202) -> 0 | F203: =SUM(F196:F202) -> 0 | G203: =SUM(G196:G202) -> 0 | H203: =SUM(H196:H202) -> 0 | I203: 0 | P203: Total excl. OH
A204: OH | C204: =IFERROR(IF($G$192="",IF(E204="",B204*$E$192,E204),IF(E204="",B204*$G$192,E204)),0) -> 0 | D204: =IFERROR(B204-C204-F204,0) -> 0 | H204: =IF(B204="",0,B204) -> 0 | I204: 0 | P204: OH
A205: Total | B205: =SUM(B196:B202)+B204 -> 0 | C205: =SUM(C196:C202)+C204 -> 0 | D205: =SUM(D196:D202)+D204 -> 0 | E205: =SUM(E196:E202)+E204 -> 0 | F205: =SUM(F196:F202)+F204 -> 0 | G205: =SUM(G196:G202)+G204 -> 0 | H205: =SUM(H196:H202)+H204 -> 0 | I205: 0 | P205: Total
A207: Company name: | C207: Participant 13 | D207: Company size:
A208: Activity type: | C208: =IF(IF(G208="",E208,G208)="",0,IF(G208="",E208,G208)) -> 0 | D208: Maximum subsidy rate: | E208: =_xlfn.IFNA(VLOOKUP(B208,'List of subsidy rates'!$A:$K,MATCH(CONCATENATE(E207," - ",$H$1),'List of subsidy rates'!$A$1:$K$1,0),FALSE),"") ->  | F208: Manual subsidy rate: | H208: =ROUND(IF(E207="",0,IF(LEFT(E207,6)="Public",B219*0.44,B212*0.3)),2) -> 0
A209: OH-percentage | B209: =IF(E207="","",IF(E207="Public research and knowledge dissemination organization",0.44,0.3)) ->  | C209: OH remaining amount | D209: =IF(E207="","",IF(LEFT(E207,6)="Public",B219*0.44-B220,B212*0.3-B220)) -> 
A211: =IF(B221>0,"Ja","") ->  | B211: Costs | C211: Of which: GUDP | D211: Of which: Independent financing | E211: Of which: GUDP - manual | F211: Of which: Other public funding - manual | G211: No. of hours | J211: Specification of sub-budget: | P211: =IF(Q221="","",IF(RIGHT(E207,10)="Virksomhed",IF(SUM(Q212:Q220)/COUNT(Q212:Q220)<>Q221,1,""),"")) ->  | Q211: subsidy rate
A212: Salary | C212: =IFERROR(IF($G$208="",IF(E212="",B212*$E$208,E212),IF(E212="",B212*$G$208,E212)),0) -> 0 | D212: =IFERROR(B212-C212-F212,0) -> 0 | H212: =IF(B212="",0,B212) -> 0 | I212: =IF($E$207<>"Public research and knowledge dissemination organization",0,IF(B212="",0,B212)) -> 0 | P212: =A212 -> Salary | Q212: =IFERROR(C212/B212,"") -> 
A213: External assistance | C213: 0 | D213: =IFERROR(B213-C213-F213,0) -> 0 | H213: 0 | I213: 0 | P213: External assistance
A214: Other costs | C214: 0 | D214: 0 | H214: 0 | I214: 0 | P214: Other costs
A215: Apparatus/equipment | C215: 0 | D215: 0 | H215: 0 | I215: 0 | P215: Apparatus/equipment
A216: Scrap value | C216: 0 | D216: 0 | H216: 0 | I216: 0 | P216: Scrap value
A217: Income, if any | C217: 0 | D217: 0 | H217: 0 | I217: 0 | P217: Income, if any
A218: Audit costs | C218: 0 | D218: 0 | H218: 0 | I218: 0 | P218: Audit costs
A219: Total excl. OH | B219: =SUM(B212:B218) -> 0 | C219: =SUM(C212:C218) -> 0 | D219: =SUM(D212:D218) -> 0 | E219: =SUM(E212:E218) -> 0 | F219: =SUM(F212:F218) -> 0 | G219: =SUM(G212:G218) -> 0 | H219: =SUM(H212:H218) -> 0 | I219: 0 | P219: Total excl. OH
A220: OH | C220: =IFERROR(IF($G$208="",IF(E220="",B220*$E$208,E220),IF(E220="",B220*$G$208,E220)),0) -> 0 | D220: =IFERROR(B220-C220-F220,0) -> 0 | H220: =IF(B220="",0,B220) -> 0 | I220: 0 | P220: OH
A221: Total | B221: =SUM(B212:B218)+B220 -> 0 | C221: =SUM(C212:C218)+C220 -> 0 | D221: =SUM(D212:D218)+D220 -> 0 | E221: =SUM(E212:E218)+E220 -> 0 | F221: =SUM(F212:F218)+F220 -> 0 | G221: =SUM(G212:G218)+G220 -> 0 | H221: =SUM(H212:H218)+H220 -> 0 | I221: 0 | P221: Total
A223: Company name: | C223: Participant 14 | D223: Company size:
A224: Activity type: | C224: =IF(IF(G224="",E224,G224)="",0,IF(G224="",E224,G224)) -> 0 | D224: Maximum subsidy rate: | E224: =_xlfn.IFNA(VLOOKUP(B224,'List of subsidy rates'!$A:$K,MATCH(CONCATENATE(E223," - ",$H$1),'List of subsidy rates'!$A$1:$K$1,0),FALSE),"") ->  | F224: Manual subsidy rate: | H224: =ROUND(IF(E223="",0,IF(LEFT(E223,6)="Public",B235*0.44,B228*0.3)),2) -> 0
A225: OH-percentage | B225: =IF(E223="","",IF(E223="Public research and knowledge dissemination organization",0.44,0.3)) ->  | C225: OH remaining amount | D225: =IF(E223="","",IF(LEFT(E223,6)="Public",B235*0.44-B236,B228*0.3-B236)) -> 
A227: =IF(B237>0,"Ja","") ->  | B227: Costs | C227: Of which: GUDP | D227: Of which: Independent financing | E227: Of which: GUDP - manual | F227: Of which: Other public funding - manual | G227: No. of hours | J227: Specification of sub-budget: | P227: =IF(Q237="","",IF(RIGHT(E223,10)="Virksomhed",IF(SUM(Q228:Q236)/COUNT(Q228:Q236)<>Q237,1,""),"")) ->  | Q227: subsidy rate
A228: Salary | C228: =IFERROR(IF($G$224="",IF(E228="",B228*$E$224,E228),IF(E228="",B228*$G$224,E228)),0) -> 0 | D228: =IFERROR(B228-C228-F228,0) -> 0 | H228: =IF(B228="",0,B228) -> 0 | I228: =IF($E$223<>"Public research and knowledge dissemination organization",0,IF(B228="",0,B228)) -> 0 | P228: =A228 -> Salary | Q228: =IFERROR(C228/B228,"") -> 
... 93 more rows

Sheet Ex. of individual project (hidden)
A1: Project title: | B1: Example of budget for a company with two acitvity types | H1: Individual
D2: Total project budget is filled in automatically
B3: Costs | C3: Of which: GUDP | D3: Of which: Independent financing | E3: Of which: GUDP - manual | F3: Of which: Other public funding - manual | G3: No. of hours
A4: Salary | B4: =B20+B36+B52+B68+B84+B100+B116+B132+B148+B164+B180+B196+B212+B228+B244+B260+B276+B292+B308+B324 -> 950000 | C4: =C20+C36+C52+C68+C84+C100+C116+C132+C148+C164+C180+C196+C212+C228+C244+C260+C276+C292+C308+C324 -> 452500 | D4: 497500 | E4: 0 | F4: 0 | G4: 3043 | J4: Journal no: 34009-22-XXXX
A5: External assistance | B5: 16700 | C5: =C21+C37+C53+C69+C85+C101+C117+C133+C149+C165+C181+C197+C213+C229+C245+C261+C277+C293+C309+C325 -> 7515 | D5: 9185 | E5: 0 | F5: 0 | G5: 0 | J5: Approved from: XX-XX-XXXX
A6: Other costs | B6: 150000 | C6: 80000 | D6: 70000 | E6: 0 | F6: 0 | G6: 0
A7: Apparatus/equipment | B7: 50000 | C7: 22500 | D7: 27500 | E7: 0 | F7: 0 | G7: 0
A8: Scrap value | B8: -10000 | C8: -4500 | D8: -5500 | E8: 0 | F8: 0 | G8: 0
A9: Income, if any | B9: 0 | C9: 0 | D9: 0 | E9: 0 | F9: 0 | G9: 0
A10: Audit costs | B10: 36000 | C10: 20700 | D10: 15300 | E10: 0 | F10: 0 | G10: 0
A11: Total excl. OH | B11: 1192700 | C11: 578715 | D11: 613985 | E11: 0 | F11: 0 | G11: 3043
A12: OH | B12: 285000 | C12: 135750 | D12: 149250 | E12: 0 | F12: 0 | G12: 0
A13: Total | B13: 1477700 | C13: 714465 | D13: 763235 | E13: 0 | F13: 0 | G13: 3043
A15: Company name: | B15: The Little Green Company | C15: Main applicant | D15: Company size: | E15: Small company | K15: Use this button to ensure, that you have filled in the data correctly. Red circles mark an error. Remember to look in the budget-template to the left and in the grant percentage to the right.
A16: Activity type: | B16: Development | C16: =IF(IF(G16="",E16,G16)="",0,IF(G16="",E16,G16)) -> 0.45 | D16: Maximum subsidy rate: | E16: =_xlfn.IFNA(VLOOKUP(B16,'List of subsidy rates'!$A:$K,MATCH(CONCATENATE(E15," - ",$H$1),'List of subsidy rates'!$A$1:$K$1,0),FALSE),"") -> 0.45 | F16: Manual subsidy rate: | H16: =ROUND(IF(E15="",0,IF(LEFT(E15,6)="Public",B27*0.44,B20*0.3)),2) -> 255000
A17: OH-percentage | B17: =IF(E15="","",IF(E15="Public research and knowledge dissemination organization",0.44,0.3)) -> 0.3 | C17: OH residual amount | D17: =IF(E15="","",IF(LEFT(E15,6)="Public",B27*0.44-B28,B20*0.3-B28)) -> 0
B19: Costs | C19: Of which: GUDP | D19: Of which: Independent financing | E19: Of which: GUDP - manual | F19: Of which: Other public funding - manual | G19: No. of hours | J19: Specification of sub-budget: | P19: =IF(Q29="","",IF(RIGHT(E15,10)="Virksomhed",IF(SUM(Q20:Q28)/COUNT(Q20:Q28)<>Q29,1,""),"")) ->  | Q19: subsidy rate
A20: Salary | B20: 850000 | C20: =IFERROR(IF($G$16="",IF(E20="",B20*$E$16,E20),IF(E20="",B20*$G$16,E20)),0) -> 382500 | D20: =IFERROR(B20-C20-F20,0) -> 467500 | G20: 2730 | H20: =IF(B20="",0,B20) -> 850000 | I20: =IF($E$15<>"Public research and knowledge dissemination organization",0,IF(B20="",0,B20)) -> 0 | P20: =A20 -> Salary | Q20: =IFERROR(C20/B20,"") -> 0.45
A21: External assistance | B21: 16700 | C21: 7515 | D21: =IFERROR(B21-C21-F21,0) -> 9185 | H21: =IF(B21="",0,B21) -> 16700 | I21: 0 | P21: External assistance | Q21: 0.45
A22: Other costs | B22: 100000 | C22: 45000 | D22: 55000 | H22: 100000 | I22: 0 | P22: Other costs | Q22: 0.45
A23: Apparatus/equipment | B23: 50000 | C23: 22500 | D23: 27500 | H23: 50000 | I23: 0 | P23: Apparatus/equipment | Q23: 0.45
A24: Scrap value | B24: -10000 | C24: -4500 | D24: -5500 | H24: -10000 | I24: 0 | P24: Scrap value | Q24: 0.45
A25: Income, if any | C25: 0 | D25: 0 | H25: 0 | I25: 0 | P25: Income, if any
A26: Audit costs | B26: 18000 | C26: 8100 | D26: 9900 | H26: 18000 | I26: 0 | P26: Audit costs | Q26: 0.45
A27: Total excl. OH | B27: =SUM(B20:B26) -> 1024700 | C27: 461115 | D27: 563585 | E27: 0 | F27: 0 | G27: =SUM(G20:G26) -> 2730 | H27: 1024700 | I27: 0 | P27: Total excl. OH | Q27: 0.45
A28: OH | B28: =B20*0.3 -> 255000 | C28: =IFERROR(IF($G$16="",IF(E28="",B28*$E$16,E28),IF(E28="",B28*$G$16,E28)),0) -> 114750 | D28: =IFERROR(B28-C28-F28,0) -> 140250 | H28: 255000 | I28: 0 | P28: OH | Q28: 0.45
A29: Total | B29: =SUM(B20:B26)+B28 -> 1279700 | C29: 575865 | D29: 703835 | E29: 0 | F29: 0 | G29: 2730 | H29: 1279700 | I29: 0 | P29: Total | Q29: 0.45
A31: Company name: | B31: The Little Green Company | C31: Participant 2 | D31: Company size: | E31: Small company
A32: Activity type: | B32: Demonstration | C32: =IF(IF(G32="",E32,G32)="",0,IF(G32="",E32,G32)) -> 0.7 | D32: Maximum subsidy rate: | E32: =_xlfn.IFNA(VLOOKUP(B32,'List of subsidy rates'!$A:$K,MATCH(CONCATENATE(E31," - ",$H$1),'List of subsidy rates'!$A$1:$K$1,0),FALSE),"") -> 0.7 | F32: Manual subsidy rate: | H32: =ROUND(IF(E31="",0,IF(LEFT(E31,6)="Public",B43*0.44,B36*0.3)),2) -> 30000
A33: OH-percentage | B33: =IF(E31="","",IF(E31="Public research and knowledge dissemination organization",0.44,0.3)) -> 0.3 | C33: OH residual amount | D33: =IF(E31="","",IF(LEFT(E31,6)="Public",B43*0.44-B44,B36*0.3-B44)) -> 0
B35: Costs | C35: Of which: GUDP | D35: Of which: Independent financing | E35: Of which: GUDP - manual | F35: Of which: Other public funding - manual | G35: No. of hours | J35: Specification of sub-budget: | P35: =IF(Q45="","",IF(RIGHT(E31,10)="Virksomhed",IF(SUM(Q36:Q44)/COUNT(Q36:Q44)<>Q45,1,""),"")) ->  | Q35: subsidy rate
A36: Salary | B36: 100000 | C36: =IFERROR(IF($G$32="",IF(E36="",B36*$E$32,E36),IF(E36="",B36*$G$32,E36)),0) -> 70000 | D36: =IFERROR(B36-C36-F36,0) -> 30000 | G36: 313 | H36: =IF(B36="",0,B36) -> 100000 | I36: =IF($E$31<>"Public research and knowledge dissemination organization",0,IF(B36="",0,B36)) -> 0 | P36: =A36 -> Salary | Q36: =IFERROR(C36/B36,"") -> 0.7
A37: External assistance | C37: =IFERROR(IF($G$32="",IF(E37="",B37*$E$32,E37),IF(E37="",B37*$G$32,E37)),0) -> 0 | D37: =IFERROR(B37-C37-F37,0) -> 0 | H37: 0 | I37: 0 | P37: External assistance
A38: Other costs | B38: 50000 | C38: 35000 | D38: 15000 | H38: 50000 | I38: 0 | P38: Other costs | Q38: 0.7
A39: Apparatus/equipment | C39: 0 | D39: 0 | H39: 0 | I39: 0 | P39: Apparatus/equipment
A40: Scrap value | C40: 0 | D40: 0 | H40: 0 | I40: 0 | P40: Scrap value
A41: Income, if any | C41: 0 | D41: 0 | H41: 0 | I41: 0 | P41: Income, if any
A42: Audit costs | B42: 18000 | C42: 12600 | D42: 5400 | H42: 18000 | I42: 0 | P42: Audit costs | Q42: 0.7
A43: Total excl. OH | B43: =SUM(B36:B42) -> 168000 | C43: =SUM(C36:C42) -> 117600 | D43: =SUM(D36:D42) -> 50400 | E43: =SUM(E36:E42) -> 0 | F43: =SUM(F36:F42) -> 0 | G43: =SUM(G36:G42) -> 313 | H43: =SUM(H36:H42) -> 168000 | I43: 0 | P43: Total excl. OH | Q43: 0.7
A44: OH | B44: =B36*0.3 -> 30000 | C44: =IFERROR(IF($G$32="",IF(E44="",B44*$E$32,E44),IF(E44="",B44*$G$32,E44)),0) -> 21000 | D44: =IFERROR(B44-C44-F44,0) -> 9000 | H44: =IF(B44="",0,B44) -> 30000 | I44: 0 | P44: OH | Q44: 0.7
A45: Total | B45: =SUM(B36:B42)+B44 -> 198000 | C45: =SUM(C36:C42)+C44 -> 138600 | D45: =SUM(D36:D42)+D44 -> 59400 | E45: =SUM(E36:E42)+E44 -> 0 | F45: =SUM(F36:F42)+F44 -> 0 | G45: =SUM(G36:G42)+G44 -> 313 | H45: =SUM(H36:H42)+H44 -> 198000 | I45: 0 | P45: Total | Q45: 0.7
A47: Company name: | C47: Participant 3 | D47: Company size:
A48: Activity type: | C48: =IF(IF(G48="",E48,G48)="",0,IF(G48="",E48,G48)) -> 0 | D48: Maximum subsidy rate: | E48: =_xlfn.IFNA(VLOOKUP(B48,'List of subsidy rates'!$A:$K,MATCH(CONCATENATE(E47," - ",$H$1),'List of subsidy rates'!$A$1:$K$1,0),FALSE),"") ->  | F48: Manual subsidy rate: | H48: =ROUND(IF(E47="",0,IF(LEFT(E47,6)="Public",B59*0.44,B52*0.3)),2) -> 0
A49: OH-percentage | B49: =IF(E47="","",IF(E47="Public research and knowledge dissemination organization",0.44,0.3)) ->  | C49: OH residual amount | D49: =IF(E47="","",IF(LEFT(E47,6)="Public",B59*0.44-B60,B52*0.3-B60)) -> 
A51: =IF(B61>0,"Ja","") ->  | B51: Costs | C51: Of which: GUDP | D51: Of which: Independent financing | E51: Of which: GUDP - manual | F51: Of which: Other public funding - manual | G51: No. of hours | J51: Specification of sub-budget: | P51: =IF(Q61="","",IF(RIGHT(E47,10)="Virksomhed",IF(SUM(Q52:Q60)/COUNT(Q52:Q60)<>Q61,1,""),"")) ->  | Q51: subsidy rate
A52: Salary | C52: =IFERROR(IF($G$48="",IF(E52="",B52*$E$48,E52),IF(E52="",B52*$G$48,E52)),0) -> 0 | D52: =IFERROR(B52-C52-F52,0) -> 0 | H52: =IF(B52="",0,B52) -> 0 | I52: =IF($E$47<>"Public research and knowledge dissemination organization",0,IF(B52="",0,B52)) -> 0 | P52: =A52 -> Salary | Q52: =IFERROR(C52/B52,"") -> 
A53: External assistance | C53: 0 | D53: =IFERROR(B53-C53-F53,0) -> 0 | H53: 0 | I53: 0 | P53: External assistance
A54: Other costs | C54: 0 | D54: 0 | H54: 0 | I54: 0 | P54: Other costs
A55: Apparatus/equipment | C55: 0 | D55: 0 | H55: 0 | I55: 0 | P55: Apparatus/equipment
A56: Scrap value | C56: 0 | D56: 0 | H56: 0 | I56: 0 | P56: Scrap value
A57: Income, if any | C57: 0 | D57: 0 | H57: 0 | I57: 0 | P57: Income, if any
A58: Audit costs | C58: 0 | D58: 0 | H58: 0 | I58: 0 | P58: Audit costs
A59: Total excl. OH | B59: =SUM(B52:B58) -> 0 | C59: =SUM(C52:C58) -> 0 | D59: =SUM(D52:D58) -> 0 | E59: =SUM(E52:E58) -> 0 | F59: =SUM(F52:F58) -> 0 | G59: =SUM(G52:G58) -> 0 | H59: =SUM(H52:H58) -> 0 | I59: 0 | P59: Total excl. OH
A60: OH | C60: =IFERROR(IF($G$48="",IF(E60="",B60*$E$48,E60),IF(E60="",B60*$G$48,E60)),0) -> 0 | D60: =IFERROR(B60-C60-F60,0) -> 0 | H60: =IF(B60="",0,B60) -> 0 | I60: 0 | P60: OH
A61: Total | B61: =SUM(B52:B58)+B60 -> 0 | C61: =SUM(C52:C58)+C60 -> 0 | D61: =SUM(D52:D58)+D60 -> 0 | E61: =SUM(E52:E58)+E60 -> 0 | F61: =SUM(F52:F58)+F60 -> 0 | G61: =SUM(G52:G58)+G60 -> 0 | H61: =SUM(H52:H58)+H60 -> 0 | I61: 0 | P61: Total
A63: Company name: | C63: Participant 4 | D63: Company size:
A64: Activity type: | C64: =IF(IF(G64="",E64,G64)="",0,IF(G64="",E64,G64)) -> 0 | D64: Maximum subsidy rate: | E64: =_xlfn.IFNA(VLOOKUP(B64,'List of subsidy rates'!$A:$K,MATCH(CONCATENATE(E63," - ",$H$1),'List of subsidy rates'!$A$1:$K$1,0),FALSE),"") ->  | F64: Manual subsidy rate: | H64: =ROUND(IF(E63="",0,IF(LEFT(E63,6)="Public",B75*0.44,B68*0.3)),2) -> 0
A65: OH-percentage | B65: =IF(E63="","",IF(E63="Public research and knowledge dissemination organization",0.44,0.3)) ->  | C65: OH residual amount | D65: =IF(E63="","",IF(LEFT(E63,6)="Public",B75*0.44-B76,B68*0.3-B76)) -> 
A67: =IF(B77>0,"Ja","") ->  | B67: Costs | C67: Of which: GUDP | D67: Of which: Independent financing | E67: Of which: GUDP - manual | F67: Of which: Other public funding - manual | G67: No. of hours | J67: Specification of sub-budget: | P67: =IF(Q77="","",IF(RIGHT(E63,10)="Virksomhed",IF(SUM(Q68:Q76)/COUNT(Q68:Q76)<>Q77,1,""),"")) ->  | Q67: subsidy rate
A68: Salary | C68: =IFERROR(IF($G$64="",IF(E68="",B68*$E$64,E68),IF(E68="",B68*$G$64,E68)),0) -> 0 | D68: =IFERROR(B68-C68-F68,0) -> 0 | H68: =IF(B68="",0,B68) -> 0 | I68: =IF($E$63<>"Public research and knowledge dissemination organization",0,IF(B68="",0,B68)) -> 0 | P68: =A68 -> Salary | Q68: =IFERROR(C68/B68,"") -> 
A69: External assistance | C69: 0 | D69: =IFERROR(B69-C69-F69,0) -> 0 | H69: 0 | I69: 0 | P69: External assistance
A70: Other costs | C70: 0 | D70: 0 | H70: 0 | I70: 0 | P70: Other costs
A71: Apparatus/equipment | C71: 0 | D71: 0 | H71: 0 | I71: 0 | P71: Apparatus/equipment
A72: Scrap value | C72: 0 | D72: 0 | H72: 0 | I72: 0 | P72: Scrap value
A73: Income, if any | C73: 0 | D73: 0 | H73: 0 | I73: 0 | P73: Income, if any
A74: Audit costs | C74: 0 | D74: 0 | H74: 0 | I74: 0 | P74: Audit costs
A75: Total excl. OH | B75: =SUM(B68:B74) -> 0 | C75: =SUM(C68:C74) -> 0 | D75: =SUM(D68:D74) -> 0 | E75: =SUM(E68:E74) -> 0 | F75: =SUM(F68:F74) -> 0 | G75: =SUM(G68:G74) -> 0 | H75: =SUM(H68:H74) -> 0 | I75: 0 | P75: Total excl. OH
A76: OH | C76: =IFERROR(IF($G$64="",IF(E76="",B76*$E$64,E76),IF(E76="",B76*$G$64,E76)),0) -> 0 | D76: =IFERROR(B76-C76-F76,0) -> 0 | H76: =IF(B76="",0,B76) -> 0 | I76: 0 | P76: OH
A77: Total | B77: =SUM(B68:B74)+B76 -> 0 | C77: =SUM(C68:C74)+C76 -> 0 | D77: =SUM(D68:D74)+D76 -> 0 | E77: =SUM(E68:E74)+E76 -> 0 | F77: =SUM(F68:F74)+F76 -> 0 | G77: =SUM(G68:G74)+G76 -> 0 | H77: =SUM(H68:H74)+H76 -> 0 | I77: 0 | P77: Total
A79: Company name: | C79: Participant 5 | D79: Company size:
A80: Activity type: | C80: =IF(IF(G80="",E80,G80)="",0,IF(G80="",E80,G80)) -> 0 | D80: Maximum subsidy rate: | E80: =_xlfn.IFNA(VLOOKUP(B80,'List of subsidy rates'!$A:$K,MATCH(CONCATENATE(E79," - ",$H$1),'List of subsidy rates'!$A$1:$K$1,0),FALSE),"") ->  | F80: Manual subsidy rate: | H80: =ROUND(IF(E79="",0,IF(LEFT(E79,6)="Public",B91*0.44,B84*0.3)),2) -> 0
A81: OH-percentage | B81: =IF(E79="","",IF(E79="Public research and knowledge dissemination organization",0.44,0.3)) ->  | C81: OH residual amount | D81: =IF(E79="","",IF(LEFT(E79,6)="Public",B91*0.44-B92,B84*0.3-B92)) -> 
A83: =IF(B93>0,"Ja","") ->  | B83: Costs | C83: Of which: GUDP | D83: Of which: Independent financing | E83: Of which: GUDP - manual | F83: Of which: Other public funding - manual | G83: No. of hours | J83: Specification of sub-budget: | P83: =IF(Q93="","",IF(RIGHT(E79,10)="Virksomhed",IF(SUM(Q84:Q92)/COUNT(Q84:Q92)<>Q93,1,""),"")) ->  | Q83: subsidy rate
A84: Salary | C84: =IFERROR(IF($G$80="",IF(E84="",B84*$E$80,E84),IF(E84="",B84*$G$80,E84)),0) -> 0 | D84: =IFERROR(B84-C84-F84,0) -> 0 | H84: =IF(B84="",0,B84) -> 0 | I84: =IF($E$79<>"Public research and knowledge dissemination organization",0,IF(B84="",0,B84)) -> 0 | P84: =A84 -> Salary | Q84: =IFERROR(C84/B84,"") -> 
A85: External assistance | C85: 0 | D85: =IFERROR(B85-C85-F85,0) -> 0 | H85: 0 | I85: 0 | P85: External assistance
A86: Other costs | C86: 0 | D86: 0 | H86: 0 | I86: 0 | P86: Other costs
A87: Apparatus/equipment | C87: 0 | D87: 0 | H87: 0 | I87: 0 | P87: Apparatus/equipment
A88: Scrap value | C88: 0 | D88: 0 | H88: 0 | I88: 0 | P88: Scrap value
A89: Income, if any | C89: 0 | D89: 0 | H89: 0 | I89: 0 | P89: Income, if any
A90: Audit costs | C90: 0 | D90: 0 | H90: 0 | I90: 0 | P90: Audit costs
A91: Total excl. OH | B91: =SUM(B84:B90) -> 0 | C91: =SUM(C84:C90) -> 0 | D91: =SUM(D84:D90) -> 0 | E91: =SUM(E84:E90) -> 0 | F91: =SUM(F84:F90) -> 0 | G91: =SUM(G84:G90) -> 0 | H91: =SUM(H84:H90) -> 0 | I91: 0 | P91: Total excl. OH
A92: OH | C92: =IFERROR(IF($G$80="",IF(E92="",B92*$E$80,E92),IF(E92="",B92*$G$80,E92)),0) -> 0 | D92: =IFERROR(B92-C92-F92,0) -> 0 | H92: =IF(B92="",0,B92) -> 0 | I92: 0 | P92: OH
A93: Total | B93: =SUM(B84:B90)+B92 -> 0 | C93: =SUM(C84:C90)+C92 -> 0 | D93: =SUM(D84:D90)+D92 -> 0 | E93: =SUM(E84:E90)+E92 -> 0 | F93: =SUM(F84:F90)+F92 -> 0 | G93: =SUM(G84:G90)+G92 -> 0 | H93: =SUM(H84:H90)+H92 -> 0 | I93: 0 | P93: Total
A95: Company name: | C95: Participant 6 | D95: Company size:
A96: Activity type: | C96: =IF(IF(G96="",E96,G96)="",0,IF(G96="",E96,G96)) -> 0 | D96: Maximum subsidy rate: | E96: =_xlfn.IFNA(VLOOKUP(B96,'List of subsidy rates'!$A:$K,MATCH(CONCATENATE(E95," - ",$H$1),'List of subsidy rates'!$A$1:$K$1,0),FALSE),"") ->  | F96: Manual subsidy rate: | H96: =ROUND(IF(E95="",0,IF(LEFT(E95,6)="Public",B107*0.44,B100*0.3)),2) -> 0
A97: OH-percentage | B97: =IF(E95="","",IF(E95="Public research and knowledge dissemination organization",0.44,0.3)) ->  | C97: OH residual amount | D97: =IF(E95="","",IF(LEFT(E95,6)="Public",B107*0.44-B108,B100*0.3-B108)) -> 
A99: =IF(B109>0,"Ja","") ->  | B99: Costs | C99: Of which: GUDP | D99: Of which: Independent financing | E99: Of which: GUDP - manual | F99: Of which: Other public funding - manual | G99: No. of hours | J99: Specification of sub-budget: | P99: =IF(Q109="","",IF(RIGHT(E95,10)="Virksomhed",IF(SUM(Q100:Q108)/COUNT(Q100:Q108)<>Q109,1,""),"")) ->  | Q99: subsidy rate
A100: Salary | C100: =IFERROR(IF($G$96="",IF(E100="",B100*$E$96,E100),IF(E100="",B100*$G$96,E100)),0) -> 0 | D100: =IFERROR(B100-C100-F100,0) -> 0 | H100: =IF(B100="",0,B100) -> 0 | I100: =IF($E$95<>"Public research and knowledge dissemination organization",0,IF(B100="",0,B100)) -> 0 | P100: =A100 -> Salary | Q100: =IFERROR(C100/B100,"") -> 
A101: External assistance | C101: 0 | D101: =IFERROR(B101-C101-F101,0) -> 0 | H101: 0 | I101: 0 | P101: External assistance
A102: Other costs | C102: 0 | D102: 0 | H102: 0 | I102: 0 | P102: Other costs
A103: Apparatus/equipment | C103: 0 | D103: 0 | H103: 0 | I103: 0 | P103: Apparatus/equipment
A104: Scrap value | C104: 0 | D104: 0 | H104: 0 | I104: 0 | P104: Scrap value
A105: Income, if any | C105: 0 | D105: 0 | H105: 0 | I105: 0 | P105: Income, if any
A106: Audit costs | C106: 0 | D106: 0 | H106: 0 | I106: 0 | P106: Audit costs
A107: Total excl. OH | B107: =SUM(B100:B106) -> 0 | C107: =SUM(C100:C106) -> 0 | D107: =SUM(D100:D106) -> 0 | E107: =SUM(E100:E106) -> 0 | F107: =SUM(F100:F106) -> 0 | G107: =SUM(G100:G106) -> 0 | H107: =SUM(H100:H106) -> 0 | I107: 0 | P107: Total excl. OH
A108: OH | C108: =IFERROR(IF($G$96="",IF(E108="",B108*$E$96,E108),IF(E108="",B108*$G$96,E108)),0) -> 0 | D108: =IFERROR(B108-C108-F108,0) -> 0 | H108: =IF(B108="",0,B108) -> 0 | I108: 0 | P108: OH
A109: Total | B109: =SUM(B100:B106)+B108 -> 0 | C109: =SUM(C100:C106)+C108 -> 0 | D109: =SUM(D100:D106)+D108 -> 0 | E109: =SUM(E100:E106)+E108 -> 0 | F109: =SUM(F100:F106)+F108 -> 0 | G109: =SUM(G100:G106)+G108 -> 0 | H109: =SUM(H100:H106)+H108 -> 0 | I109: 0 | P109: Total
A111: Company name: | C111: Participant 7 | D111: Company size:
A112: Activity type: | C112: =IF(IF(G112="",E112,G112)="",0,IF(G112="",E112,G112)) -> 0 | D112: Maximum subsidy rate: | E112: =_xlfn.IFNA(VLOOKUP(B112,'List of subsidy rates'!$A:$K,MATCH(CONCATENATE(E111," - ",$H$1),'List of subsidy rates'!$A$1:$K$1,0),FALSE),"") ->  | F112: Manual subsidy rate: | H112: =ROUND(IF(E111="",0,IF(LEFT(E111,6)="Public",B123*0.44,B116*0.3)),2) -> 0
A113: OH-percentage | B113: =IF(E111="","",IF(E111="Public research and knowledge dissemination organization",0.44,0.3)) ->  | C113: OH residual amount | D113: =IF(E111="","",IF(LEFT(E111,6)="Public",B123*0.44-B124,B116*0.3-B124)) -> 
A115: =IF(B125>0,"Ja","") ->  | B115: Costs | C115: Of which: GUDP | D115: Of which: Independent financing | E115: Of which: GUDP - manual | F115: Of which: Other public funding - manual | G115: No. of hours | J115: Specifikation af delbudget: | P115: =IF(Q125="","",IF(RIGHT(E111,10)="Virksomhed",IF(SUM(Q116:Q124)/COUNT(Q116:Q124)<>Q125,1,""),"")) ->  | Q115: subsidy rate
A116: Salary | C116: =IFERROR(IF($G$112="",IF(E116="",B116*$E$112,E116),IF(E116="",B116*$G$112,E116)),0) -> 0 | D116: =IFERROR(B116-C116-F116,0) -> 0 | H116: =IF(B116="",0,B116) -> 0 | I116: =IF($E$111<>"Public research and knowledge dissemination organization",0,IF(B116="",0,B116)) -> 0 | P116: =A116 -> Salary | Q116: =IFERROR(C116/B116,"") -> 
A117: External assistance | C117: 0 | D117: =IFERROR(B117-C117-F117,0) -> 0 | H117: 0 | I117: 0 | P117: External assistance
A118: Other costs | C118: 0 | D118: 0 | H118: 0 | I118: 0 | P118: Other costs
A119: Apparatus/equipment | C119: 0 | D119: 0 | H119: 0 | I119: 0 | P119: Apparatus/equipment
A120: Scrap value | C120: 0 | D120: 0 | H120: 0 | I120: 0 | P120: Scrap value
A121: Income, if any | C121: 0 | D121: 0 | H121: 0 | I121: 0 | P121: Income, if any
A122: Audit costs | C122: 0 | D122: 0 | H122: 0 | I122: 0 | P122: Audit costs
A123: Total excl. OH | B123: =SUM(B116:B122) -> 0 | C123: =SUM(C116:C122) -> 0 | D123: =SUM(D116:D122) -> 0 | E123: =SUM(E116:E122) -> 0 | F123: =SUM(F116:F122) -> 0 | G123: =SUM(G116:G122) -> 0 | H123: =SUM(H116:H122) -> 0 | I123: 0 | P123: Total excl. OH
A124: OH | C124: =IFERROR(IF($G$112="",IF(E124="",B124*$E$112,E124),IF(E124="",B124*$G$112,E124)),0) -> 0 | D124: =IFERROR(B124-C124-F124,0) -> 0 | H124: =IF(B124="",0,B124) -> 0 | I124: 0 | P124: OH
A125: Total | B125: =SUM(B116:B122)+B124 -> 0 | C125: =SUM(C116:C122)+C124 -> 0 | D125: =SUM(D116:D122)+D124 -> 0 | E125: =SUM(E116:E122)+E124 -> 0 | F125: =SUM(F116:F122)+F124 -> 0 | G125: =SUM(G116:G122)+G124 -> 0 | H125: =SUM(H116:H122)+H124 -> 0 | I125: 0 | P125: Total
A127: Company name: | C127: Participant 8 | D127: Company size:
A128: Activity type: | C128: =IF(IF(G128="",E128,G128)="",0,IF(G128="",E128,G128)) -> 0 | D128: Maximum subsidy rate: | E128: =_xlfn.IFNA(VLOOKUP(B128,'List of subsidy rates'!$A:$K,MATCH(CONCATENATE(E127," - ",$H$1),'List of subsidy rates'!$A$1:$K$1,0),FALSE),"") ->  | F128: Manual subsidy rate: | H128: =ROUND(IF(E127="",0,IF(LEFT(E127,6)="Public",B139*0.44,B132*0.3)),2) -> 0
A129: OH-percentage | B129: =IF(E127="","",IF(E127="Public research and knowledge dissemination organization",0.44,0.3)) ->  | C129: OH residual amount | D129: =IF(E127="","",IF(LEFT(E127,6)="Public",B139*0.44-B140,B132*0.3-B140)) -> 
A131: =IF(B141>0,"Ja","") ->  | B131: Costs | C131: Of which: GUDP | D131: Of which: Independent financing | E131: Of which: GUDP - manual | F131: Of which: Other public funding - manual | G131: No. of hours | J131: Specification of sub-budget: | P131: =IF(Q141="","",IF(RIGHT(E127,10)="Virksomhed",IF(SUM(Q132:Q140)/COUNT(Q132:Q140)<>Q141,1,""),"")) ->  | Q131: subsidy rate
A132: Salary | C132: =IFERROR(IF($G$128="",IF(E132="",B132*$E$128,E132),IF(E132="",B132*$G$128,E132)),0) -> 0 | D132: =IFERROR(B132-C132-F132,0) -> 0 | H132: =IF(B132="",0,B132) -> 0 | I132: =IF($E$127<>"Public research and knowledge dissemination organization",0,IF(B132="",0,B132)) -> 0 | P132: =A132 -> Salary | Q132: =IFERROR(C132/B132,"") -> 
A133: External assistance | C133: 0 | D133: =IFERROR(B133-C133-F133,0) -> 0 | H133: 0 | I133: 0 | P133: External assistance
A134: Other costs | C134: 0 | D134: 0 | H134: 0 | I134: 0 | P134: Other costs
A135: Apparatus/equipment | C135: 0 | D135: 0 | H135: 0 | I135: 0 | P135: Apparatus/equipment
A136: Scrap value | C136: 0 | D136: 0 | H136: 0 | I136: 0 | P136: Scrap value
A137: Income, if any | C137: 0 | D137: 0 | H137: 0 | I137: 0 | P137: Income, if any
A138: Audit costs | C138: 0 | D138: 0 | H138: 0 | I138: 0 | P138: Audit costs
A139: Total excl. OH | B139: =SUM(B132:B138) -> 0 | C139: =SUM(C132:C138) -> 0 | D139: =SUM(D132:D138) -> 0 | E139: =SUM(E132:E138) -> 0 | F139: =SUM(F132:F138) -> 0 | G139: =SUM(G132:G138) -> 0 | H139: =SUM(H132:H138) -> 0 | I139: 0 | P139: Total excl. OH
A140: OH | C140: =IFERROR(IF($G$128="",IF(E140="",B140*$E$128,E140),IF(E140="",B140*$G$128,E140)),0) -> 0 | D140: =IFERROR(B140-C140-F140,0) -> 0 | H140: =IF(B140="",0,B140) -> 0 | I140: 0 | P140: OH
A141: Total | B141: =SUM(B132:B138)+B140 -> 0 | C141: =SUM(C132:C138)+C140 -> 0 | D141: =SUM(D132:D138)+D140 -> 0 | E141: =SUM(E132:E138)+E140 -> 0 | F141: =SUM(F132:F138)+F140 -> 0 | G141: =SUM(G132:G138)+G140 -> 0 | H141: =SUM(H132:H138)+H140 -> 0 | I141: 0 | P141: Total
A143: Company name: | C143: Participant 9 | D143: Company size:
A144: Activity type: | C144: =IF(IF(G144="",E144,G144)="",0,IF(G144="",E144,G144)) -> 0 | D144: Maximum subsidy rate: | E144: =_xlfn.IFNA(VLOOKUP(B144,'List of subsidy rates'!$A:$K,MATCH(CONCATENATE(E143," - ",$H$1),'List of subsidy rates'!$A$1:$K$1,0),FALSE),"") ->  | F144: Manual subsidy rate: | H144: =ROUND(IF(E143="",0,IF(LEFT(E143,6)="Public",B155*0.44,B148*0.3)),2) -> 0
A145: OH-percentage | B145: =IF(E143="","",IF(E143="Public research and knowledge dissemination organization",0.44,0.3)) ->  | C145: OH residual amount | D145: =IF(E143="","",IF(LEFT(E143,6)="Public",B155*0.44-B156,B148*0.3-B156)) -> 
A147: =IF(B157>0,"Ja","") ->  | B147: Costs | C147: Of which: GUDP | D147: Of which: Independent financing | E147: Of which: GUDP - manual | F147: Of which: Other public funding - manual | G147: No. of hours | J147: Specification of sub-budget: | P147: =IF(Q157="","",IF(RIGHT(E143,10)="Virksomhed",IF(SUM(Q148:Q156)/COUNT(Q148:Q156)<>Q157,1,""),"")) ->  | Q147: subsidy rate
A148: Salary | C148: =IFERROR(IF($G$144="",IF(E148="",B148*$E$144,E148),IF(E148="",B148*$G$144,E148)),0) -> 0 | D148: =IFERROR(B148-C148-F148,0) -> 0 | H148: =IF(B148="",0,B148) -> 0 | I148: =IF($E$143<>"Public research and knowledge dissemination organization",0,IF(B148="",0,B148)) -> 0 | P148: =A148 -> Salary | Q148: =IFERROR(C148/B148,"") -> 
A149: External assistance | C149: 0 | D149: =IFERROR(B149-C149-F149,0) -> 0 | H149: 0 | I149: 0 | P149: External assistance
A150: Other costs | C150: 0 | D150: 0 | H150: 0 | I150: 0 | P150: Other costs
A151: Apparatus/equipment | C151: 0 | D151: 0 | H151: 0 | I151: 0 | P151: Apparatus/equipment
A152: Scrap value | C152: 0 | D152: 0 | H152: 0 | I152: 0 | P152: Scrap value
A153: Income, if any | C153: 0 | D153: 0 | H153: 0 | I153: 0 | P153: Income, if any
A154: Audit costs | C154: 0 | D154: 0 | H154: 0 | I154: 0 | P154: Audit costs
A155: Total excl. OH | B155: =SUM(B148:B154) -> 0 | C155: =SUM(C148:C154) -> 0 | D155: =SUM(D148:D154) -> 0 | E155: =SUM(E148:E154) -> 0 | F155: =SUM(F148:F154) -> 0 | G155: =SUM(G148:G154) -> 0 | H155: =SUM(H148:H154) -> 0 | I155: 0 | P155: Total excl. OH
A156: OH | C156: =IFERROR(IF($G$144="",IF(E156="",B156*$E$144,E156),IF(E156="",B156*$G$144,E156)),0) -> 0 | D156: =IFERROR(B156-C156-F156,0) -> 0 | H156: =IF(B156="",0,B156) -> 0 | I156: 0 | P156: OH
A157: Total | B157: =SUM(B148:B154)+B156 -> 0 | C157: =SUM(C148:C154)+C156 -> 0 | D157: =SUM(D148:D154)+D156 -> 0 | E157: =SUM(E148:E154)+E156 -> 0 | F157: =SUM(F148:F154)+F156 -> 0 | G157: =SUM(G148:G154)+G156 -> 0 | H157: =SUM(H148:H154)+H156 -> 0 | I157: 0 | P157: Total
A159: Company name: | C159: Participant 10 | D159: Company size:
A160: Activity type: | C160: =IF(IF(G160="",E160,G160)="",0,IF(G160="",E160,G160)) -> 0 | D160: Maximum subsidy rate: | E160: =_xlfn.IFNA(VLOOKUP(B160,'List of subsidy rates'!$A:$K,MATCH(CONCATENATE(E159," - ",$H$1),'List of subsidy rates'!$A$1:$K$1,0),FALSE),"") ->  | F160: Manual subsidy rate: | H160: =ROUND(IF(E159="",0,IF(LEFT(E159,6)="Public",B171*0.44,B164*0.3)),2) -> 0
A161: OH-percentage | B161: =IF(E159="","",IF(E159="Public research and knowledge dissemination organization",0.44,0.3)) ->  | C161: OH residual amount | D161: =IF(E159="","",IF(LEFT(E159,6)="Public",B171*0.44-B172,B164*0.3-B172)) -> 
A163: =IF(B173>0,"Ja","") ->  | B163: Costs | C163: Of which: GUDP | D163: Of which: Independent financing | E163: Of which: GUDP - manual | F163: Of which: Other public funding - manual | G163: No. of hours | J163: Specification of sub-budget: | P163: =IF(Q173="","",IF(RIGHT(E159,10)="Virksomhed",IF(SUM(Q164:Q172)/COUNT(Q164:Q172)<>Q173,1,""),"")) ->  | Q163: subsidy rate
A164: Salary | C164: =IFERROR(IF($G$160="",IF(E164="",B164*$E$160,E164),IF(E164="",B164*$G$160,E164)),0) -> 0 | D164: =IFERROR(B164-C164-F164,0) -> 0 | H164: =IF(B164="",0,B164) -> 0 | I164: =IF($E$159<>"Public research and knowledge dissemination organization",0,IF(B164="",0,B164)) -> 0 | P164: =A164 -> Salary | Q164: =IFERROR(C164/B164,"") -> 
A165: External assistance | C165: 0 | D165: =IFERROR(B165-C165-F165,0) -> 0 | H165: 0 | I165: 0 | P165: External assistance
A166: Other costs | C166: 0 | D166: 0 | H166: 0 | I166: 0 | P166: Other costs
A167: Apparatus/equipment | C167: 0 | D167: 0 | H167: 0 | I167: 0 | P167: Apparatus/equipment
A168: Scrap value | C168: 0 | D168: 0 | H168: 0 | I168: 0 | P168: Scrap value
A169: Income, if any | C169: 0 | D169: 0 | H169: 0 | I169: 0 | P169: Income, if any
A170: Audit costs | C170: 0 | D170: 0 | H170: 0 | I170: 0 | P170: Audit costs
A171: Total excl. OH | B171: =SUM(B164:B170) -> 0 | C171: =SUM(C164:C170) -> 0 | D171: =SUM(D164:D170) -> 0 | E171: =SUM(E164:E170) -> 0 | F171: =SUM(F164:F170) -> 0 | G171: =SUM(G164:G170) -> 0 | H171: =SUM(H164:H170) -> 0 | I171: 0 | P171: Total excl. OH
A172: OH | C172: =IFERROR(IF($G$160="",IF(E172="",B172*$E$160,E172),IF(E172="",B172*$G$160,E172)),0) -> 0 | D172: =IFERROR(B172-C172-F172,0) -> 0 | H172: =IF(B172="",0,B172) -> 0 | I172: 0 | P172: OH
A173: Total | B173: =SUM(B164:B170)+B172 -> 0 | C173: =SUM(C164:C170)+C172 -> 0 | D173: =SUM(D164:D170)+D172 -> 0 | E173: =SUM(E164:E170)+E172 -> 0 | F173: =SUM(F164:F170)+F172 -> 0 | G173: =SUM(G164:G170)+G172 -> 0 | H173: =SUM(H164:H170)+H172 -> 0 | I173: 0 | P173: Total
A175: Company name: | C175: Participant 11 | D175: Company size:
A176: Activity type: | C176: =IF(IF(G176="",E176,G176)="",0,IF(G176="",E176,G176)) -> 0 | D176: Maximum subsidy rate: | E176: =_xlfn.IFNA(VLOOKUP(B176,'List of subsidy rates'!$A:$K,MATCH(CONCATENATE(E175," - ",$H$1),'List of subsidy rates'!$A$1:$K$1,0),FALSE),"") ->  | F176: Manual subsidy rate: | H176: =ROUND(IF(E175="",0,IF(LEFT(E175,6)="Public",B187*0.44,B180*0.3)),2) -> 0
A177: OH-percentage | B177: =IF(E175="","",IF(E175="Public research and knowledge dissemination organization",0.44,0.3)) ->  | C177: OH residual amount | D177: =IF(E175="","",IF(LEFT(E175,6)="Public",B187*0.44-B188,B180*0.3-B188)) -> 
A179: =IF(B189>0,"Ja","") ->  | B179: Costs | C179: Of which: GUDP | D179: Of which: Independent financing | E179: Of which: GUDP - manual | F179: Of which: Other public funding - manual | G179: No. of hours | J179: Specification of sub-budget: | P179: =IF(Q189="","",IF(RIGHT(E175,10)="Virksomhed",IF(SUM(Q180:Q188)/COUNT(Q180:Q188)<>Q189,1,""),"")) ->  | Q179: subsidy rate
A180: Salary | C180: =IFERROR(IF($G$176="",IF(E180="",B180*$E$176,E180),IF(E180="",B180*$G$176,E180)),0) -> 0 | D180: =IFERROR(B180-C180-F180,0) -> 0 | H180: =IF(B180="",0,B180) -> 0 | I180: =IF($E$175<>"Public research and knowledge dissemination organization",0,IF(B180="",0,B180)) -> 0 | P180: =A180 -> Salary | Q180: =IFERROR(C180/B180,"") -> 
A181: External assistance | C181: 0 | D181: =IFERROR(B181-C181-F181,0) -> 0 | H181: 0 | I181: 0 | P181: External assistance
A182: Other costs | C182: 0 | D182: 0 | H182: 0 | I182: 0 | P182: Other costs
A183: Apparatus/equipment | C183: 0 | D183: 0 | H183: 0 | I183: 0 | P183: Apparatus/equipment
A184: Scrap value | C184: 0 | D184: 0 | H184: 0 | I184: 0 | P184: Scrap value
A185: Income, if any | C185: 0 | D185: 0 | H185: 0 | I185: 0 | P185: Income, if any
A186: Audit costs | C186: 0 | D186: 0 | H186: 0 | I186: 0 | P186: Audit costs
A187: Total excl. OH | B187: =SUM(B180:B186) -> 0 | C187: =SUM(C180:C186) -> 0 | D187: =SUM(D180:D186) -> 0 | E187: =SUM(E180:E186) -> 0 | F187: =SUM(F180:F186) -> 0 | G187: =SUM(G180:G186) -> 0 | H187: =SUM(H180:H186) -> 0 | I187: 0 | P187: Total excl. OH
A188: OH | C188: =IFERROR(IF($G$176="",IF(E188="",B188*$E$176,E188),IF(E188="",B188*$G$176,E188)),0) -> 0 | D188: =IFERROR(B188-C188-F188,0) -> 0 | H188: =IF(B188="",0,B188) -> 0 | I188: 0 | P188: OH
A189: Total | B189: =SUM(B180:B186)+B188 -> 0 | C189: =SUM(C180:C186)+C188 -> 0 | D189: =SUM(D180:D186)+D188 -> 0 | E189: =SUM(E180:E186)+E188 -> 0 | F189: =SUM(F180:F186)+F188 -> 0 | G189: =SUM(G180:G186)+G188 -> 0 | H189: =SUM(H180:H186)+H188 -> 0 | I189: 0 | P189: Total
A191: Company name: | C191: Participant 12 | D191: Company size:
A192: Activity type: | C192: =IF(IF(G192="",E192,G192)="",0,IF(G192="",E192,G192)) -> 0 | D192: Maximum subsidy rate: | E192: =_xlfn.IFNA(VLOOKUP(B192,'List of subsidy rates'!$A:$K,MATCH(CONCATENATE(E191," - ",$H$1),'List of subsidy rates'!$A$1:$K$1,0),FALSE),"") ->  | F192: Manual subsidy rate: | H192: =ROUND(IF(E191="",0,IF(LEFT(E191,6)="Public",B203*0.44,B196*0.3)),2) -> 0
A193: OH-percentage | B193: =IF(E191="","",IF(E191="Public research and knowledge dissemination organization",0.44,0.3)) ->  | C193: OH residual amount | D193: =IF(E191="","",IF(LEFT(E191,6)="Public",B203*0.44-B204,B196*0.3-B204)) -> 
A195: =IF(B205>0,"Ja","") ->  | B195: Costs | C195: Of which: GUDP | D195: Of which: Independent financing | E195: Of which: GUDP - manual | F195: Of which: Other public funding - manual | G195: No. of hours | J195: Specification of sub-budget: | P195: =IF(Q205="","",IF(RIGHT(E191,10)="Virksomhed",IF(SUM(Q196:Q204)/COUNT(Q196:Q204)<>Q205,1,""),"")) ->  | Q195: subsidy rate
A196: Salary | C196: =IFERROR(IF($G$192="",IF(E196="",B196*$E$192,E196),IF(E196="",B196*$G$192,E196)),0) -> 0 | D196: =IFERROR(B196-C196-F196,0) -> 0 | H196: =IF(B196="",0,B196) -> 0 | I196: =IF($E$191<>"Public research and knowledge dissemination organization",0,IF(B196="",0,B196)) -> 0 | P196: =A196 -> Salary | Q196: =IFERROR(C196/B196,"") -> 
A197: External assistance | C197: 0 | D197: =IFERROR(B197-C197-F197,0) -> 0 | H197: 0 | I197: 0 | P197: External assistance
A198: Other costs | C198: 0 | D198: 0 | H198: 0 | I198: 0 | P198: Other costs
A199: Apparatus/equipment | C199: 0 | D199: 0 | H199: 0 | I199: 0 | P199: Apparatus/equipment
A200: Scrap value | C200: 0 | D200: 0 | H200: 0 | I200: 0 | P200: Scrap value
A201: Income, if any | C201: 0 | D201: 0 | H201: 0 | I201: 0 | P201: Income, if any
A202: Audit costs | C202: 0 | D202: 0 | H202: 0 | I202: 0 | P202: Audit costs
A203: Total excl. OH | B203: =SUM(B196:B202) -> 0 | C203: =SUM(C196:C202) -> 0 | D203: =SUM(D196:D202) -> 0 | E203: =SUM(E196:E202) -> 0 | F203: =SUM(F196:F202) -> 0 | G203: =SUM(G196:G202) -> 0 | H203: =SUM(H196:H202) -> 0 | I203: 0 | P203: Total excl. OH
A204: OH | C204: =IFERROR(IF($G$192="",IF(E204="",B204*$E$192,E204),IF(E204="",B204*$G$192,E204)),0) -> 0 | D204: =IFERROR(B204-C204-F204,0) -> 0 | H204: =IF(B204="",0,B204) -> 0 | I204: 0 | P204: OH
A205: Total | B205: =SUM(B196:B202)+B204 -> 0 | C205: =SUM(C196:C202)+C204 -> 0 | D205: =SUM(D196:D202)+D204 -> 0 | E205: =SUM(E196:E202)+E204 -> 0 | F205: =SUM(F196:F202)+F204 -> 0 | G205: =SUM(G196:G202)+G204 -> 0 | H205: =SUM(H196:H202)+H204 -> 0 | I205: 0 | P205: Total
A207: Company name: | C207: Participant 13 | D207: Company size:
A208: Activity type: | C208: =IF(IF(G208="",E208,G208)="",0,IF(G208="",E208,G208)) -> 0 | D208: Maximum subsidy rate: | E208: =_xlfn.IFNA(VLOOKUP(B208,'List of subsidy rates'!$A:$K,MATCH(CONCATENATE(E207," - ",$H$1),'List of subsidy rates'!$A$1:$K$1,0),FALSE),"") ->  | F208: Manual subsidy rate: | H208: =ROUND(IF(E207="",0,IF(LEFT(E207,6)="Public",B219*0.44,B212*0.3)),2) -> 0
A209: OH-percentage | B209: =IF(E207="","",IF(E207="Public research and knowledge dissemination organization",0.44,0.3)) ->  | C209: OH residual amount | D209: =IF(E207="","",IF(LEFT(E207,6)="Public",B219*0.44-B220,B212*0.3-B220)) -> 
A211: =IF(B221>0,"Ja","") ->  | B211: Costs | C211: Of which: GUDP | D211: Of which: Independent financing | E211: Of which: GUDP - manual | F211: Of which: Other public funding - manual | G211: No. of hours | J211: Specification of sub-budget: | P211: =IF(Q221="","",IF(RIGHT(E207,10)="Virksomhed",IF(SUM(Q212:Q220)/COUNT(Q212:Q220)<>Q221,1,""),"")) ->  | Q211: subsidy rate
A212: Salary | C212: =IFERROR(IF($G$208="",IF(E212="",B212*$E$208,E212),IF(E212="",B212*$G$208,E212)),0) -> 0 | D212: =IFERROR(B212-C212-F212,0) -> 0 | H212: =IF(B212="",0,B212) -> 0 | I212: =IF($E$207<>"Public research and knowledge dissemination organization",0,IF(B212="",0,B212)) -> 0 | P212: =A212 -> Salary | Q212: =IFERROR(C212/B212,"") -> 
A213: External assistance | C213: 0 | D213: =IFERROR(B213-C213-F213,0) -> 0 | H213: 0 | I213: 0 | P213: External assistance
A214: Other costs | C214: 0 | D214: 0 | H214: 0 | I214: 0 | P214: Other costs
A215: Apparatus/equipment | C215: 0 | D215: 0 | H215: 0 | I215: 0 | P215: Apparatus/equipment
A216: Scrap value | C216: 0 | D216: 0 | H216: 0 | I216: 0 | P216: Scrap value
A217: Income, if any | C217: 0 | D217: 0 | H217: 0 | I217: 0 | P217: Income, if any
A218: Audit costs | C218: 0 | D218: 0 | H218: 0 | I218: 0 | P218: Audit costs
A219: Total excl. OH | B219: =SUM(B212:B218) -> 0 | C219: =SUM(C212:C218) -> 0 | D219: =SUM(D212:D218) -> 0 | E219: =SUM(E212:E218) -> 0 | F219: =SUM(F212:F218) -> 0 | G219: =SUM(G212:G218) -> 0 | H219: =SUM(H212:H218) -> 0 | I219: 0 | P219: Total excl. OH
A220: OH | C220: =IFERROR(IF($G$208="",IF(E220="",B220*$E$208,E220),IF(E220="",B220*$G$208,E220)),0) -> 0 | D220: =IFERROR(B220-C220-F220,0) -> 0 | H220: =IF(B220="",0,B220) -> 0 | I220: 0 | P220: OH
A221: Total | B221: =SUM(B212:B218)+B220 -> 0 | C221: =SUM(C212:C218)+C220 -> 0 | D221: =SUM(D212:D218)+D220 -> 0 | E221: =SUM(E212:E218)+E220 -> 0 | F221: =SUM(F212:F218)+F220 -> 0 | G221: =SUM(G212:G218)+G220 -> 0 | H221: =SUM(H212:H218)+H220 -> 0 | I221: 0 | P221: Total
A223: Company name: | C223: Participant 14 | D223: Company size:
A224: Activity type: | C224: =IF(IF(G224="",E224,G224)="",0,IF(G224="",E224,G224)) -> 0 | D224: Maximum subsidy rate: | E224: =_xlfn.IFNA(VLOOKUP(B224,'List of subsidy rates'!$A:$K,MATCH(CONCATENATE(E223," - ",$H$1),'List of subsidy rates'!$A$1:$K$1,0),FALSE),"") ->  | F224: Manual subsidy rate: | H224: =ROUND(IF(E223="",0,IF(LEFT(E223,6)="Public",B235*0.44,B228*0.3)),2) -> 0
A225: OH-percentage | B225: =IF(E223="","",IF(E223="Public research and knowledge dissemination organization",0.44,0.3)) ->  | C225: OH residual amount | D225: =IF(E223="","",IF(LEFT(E223,6)="Public",B235*0.44-B236,B228*0.3-B236)) -> 
A227: =IF(B237>0,"Ja","") ->  | B227: Costs | C227: Of which: GUDP | D227: Of which: Independent financing | E227: Of which: GUDP - manual | F227: Of which: Other public funding - manual | G227: No. of hours | J227: Specification of sub-budget: | P227: =IF(Q237="","",IF(RIGHT(E223,10)="Virksomhed",IF(SUM(Q228:Q236)/COUNT(Q228:Q236)<>Q237,1,""),"")) ->  | Q227: subsidy rate
A228: Salary | C228: =IFERROR(IF($G$224="",IF(E228="",B228*$E$224,E228),IF(E228="",B228*$G$224,E228)),0) -> 0 | D228: =IFERROR(B228-C228-F228,0) -> 0 | H228: =IF(B228="",0,B228) -> 0 | I228: =IF($E$223<>"Public research and knowledge dissemination organization",0,IF(B228="",0,B228)) -> 0 | P228: =A228 -> Salary | Q228: =IFERROR(C228/B228,"") -> 
... 93 more rows

Sheet Ex. of collaboration project (hidden)
A1: Project title: | B1: Example of collaboration project with 3 participants | H1: Collaboration
D2: Total project budget is filled in automatically
B3: Costs | C3: Of which: GUDP | D3: Of which: Independent financing | E3: Of which: GUDP - manual | F3: Of which: Other public funding - manual | G3: No. of hours
A4: Salary | B4: =B20+B36+B52+B68+B84+B100+B116+B132+B148+B164+B180+B196+B212+B228+B244+B260+B276+B292+B308+B324 -> 2900000 | C4: =C20+C36+C52+C68+C84+C100+C116+C132+C148+C164+C180+C196+C212+C228+C244+C260+C276+C292+C308+C324 -> 2410000 | D4: 430000 | E4: 1750000 | F4: 60000 | G4: 7769 | J4: Journal no: 34009-22-XXXX
A5: External assistance | B5: 30000 | C5: =C21+C37+C53+C69+C85+C101+C117+C133+C149+C165+C181+C197+C213+C229+C245+C261+C277+C293+C309+C325 -> 18000 | D5: 12000 | E5: 0 | F5: 0 | G5: 0 | J5: Approved from: XX-XX-XXXX
A6: Other costs | B6: 400000 | C6: 145000 | D6: 55000 | E6: 50000 | F6: 200000 | G6: 0
A7: Apparatus/equipment | B7: 50000 | C7: 30000 | D7: 20000 | E7: 0 | F7: 0 | G7: 0
A8: Scrap value | B8: -10000 | C8: -6000 | D8: -4000 | E8: 0 | F8: 0 | G8: 0
A9: Income, if any | B9: 0 | C9: 0 | D9: 0 | E9: 0 | F9: 0 | G9: 0
A10: Audit costs | B10: 52000 | C10: 29800 | D10: 17400 | E10: 0 | F10: 4800 | G10: 0
A11: Total excl. OH | B11: 3422000 | C11: 2626800 | D11: 530400 | E11: 1800000 | F11: 264800 | G11: 7769
A12: OH | B12: 1225000 | C12: 990000 | D12: 129000 | E12: 792000 | F12: 106000 | G12: 0
A13: Total | B13: 4647000 | C13: 3616800 | D13: 659400 | E13: 2592000 | F13: 370800 | G13: 7769
A15: Company name: | B15: The Little Green Company | C15: Main applicant | D15: Company size: | E15: Small company | K15: Use this button to ensure, that you have filled in the data correctly. Red circles mark an error. Remember to look in the budget-template to the left and in the grant percentage to the right.
A16: Activity type: | B16: Development | C16: =IF(IF(G16="",E16,G16)="",0,IF(G16="",E16,G16)) -> 0.6 | D16: Maximum subsidy rate: | E16: =_xlfn.IFNA(VLOOKUP(B16,'List of subsidy rates'!$A:$K,MATCH(CONCATENATE(E15," - ",$H$1),'List of subsidy rates'!$A$1:$K$1,0),FALSE),"") -> 0.6 | F16: Manual subsidy rate: | H16: =ROUND(IF(E15="",0,IF(LEFT(E15,6)="Public",B27*0.44,B20*0.3)),2) -> 255000
A17: OH-percentage | B17: =IF(E15="","",IF(E15="Public research and knowledge dissemination organization",0.44,0.3)) -> 0.3 | C17: OH residual amount | D17: =IF(E15="","",IF(LEFT(E15,6)="Public",B27*0.44-B28,B20*0.3-B28)) -> 0
B19: Costs | C19: Of which: GUDP | D19: Of which: Independent financing | E19: Of which: GUDP - manual | F19: Of which: Other public funding - manual | G19: No. of hours | J19: Specification of sub-budget | P19: =IF(Q29="","",IF(RIGHT(E15,10)="Virksomhed",IF(SUM(Q20:Q28)/COUNT(Q20:Q28)<>Q29,1,""),"")) ->  | Q19: subsidy rate
A20: Salary | B20: 850000 | C20: =IFERROR(IF($G$16="",IF(E20="",B20*$E$16,E20),IF(E20="",B20*$G$16,E20)),0) -> 510000 | D20: =IFERROR(B20-C20-F20,0) -> 340000 | G20: 2730 | H20: =IF(B20="",0,B20) -> 850000 | I20: =IF($E$15<>"Public research and knowledge dissemination organization",0,IF(B20="",0,B20)) -> 0 | P20: =A20 -> Salary | Q20: =IFERROR(C20/B20,"") -> 0.6
A21: External assistance | B21: 30000 | C21: 18000 | D21: =IFERROR(B21-C21-F21,0) -> 12000 | H21: =IF(B21="",0,B21) -> 30000 | I21: 0 | P21: External assistance | Q21: 0.6
A22: Other costs | B22: 100000 | C22: 60000 | D22: 40000 | H22: 100000 | I22: 0 | P22: Other costs | Q22: 0.6
A23: Apparatus/equipment | B23: 50000 | C23: 30000 | D23: 20000 | H23: 50000 | I23: 0 | P23: Apparatus/equipment | Q23: 0.6
A24: Scrap value | B24: -10000 | C24: -6000 | D24: -4000 | H24: -10000 | I24: 0 | P24: Scrap value | Q24: 0.6
A25: Income, if any | C25: 0 | D25: 0 | H25: 0 | I25: 0 | P25: Income, if any
A26: Audit costs | B26: 18000 | C26: 10800 | D26: 7200 | H26: 18000 | I26: 0 | P26: Audit costs | Q26: 0.6
A27: Total excl. OH | B27: =SUM(B20:B26) -> 1038000 | C27: 622800 | D27: 415200 | E27: 0 | F27: 0 | G27: =SUM(G20:G26) -> 2730 | H27: 1038000 | I27: 0 | P27: Total excl. OH | Q27: 0.6
A28: OH | B28: =B20*0.3 -> 255000 | C28: =IFERROR(IF($G$16="",IF(E28="",B28*$E$16,E28),IF(E28="",B28*$G$16,E28)),0) -> 153000 | D28: =IFERROR(B28-C28-F28,0) -> 102000 | H28: 255000 | I28: 0 | P28: OH | Q28: 0.6
A29: Total | B29: =SUM(B20:B26)+B28 -> 1293000 | C29: 775800 | D29: 517200 | E29: 0 | F29: 0 | G29: 2730 | H29: 1293000 | I29: 0 | P29: Total | Q29: 0.6
A31: Company name: | B31: The Little Green Company | C31: Participant 2 | D31: Company size: | E31: Small company
A32: Activity type: | B32: Demonstration | C32: =IF(IF(G32="",E32,G32)="",0,IF(G32="",E32,G32)) -> 0.7 | D32: Maximum subsidy rate: | E32: =_xlfn.IFNA(VLOOKUP(B32,'List of subsidy rates'!$A:$K,MATCH(CONCATENATE(E31," - ",$H$1),'List of subsidy rates'!$A$1:$K$1,0),FALSE),"") -> 0.7 | F32: Manual subsidy rate: | H32: =ROUND(IF(E31="",0,IF(LEFT(E31,6)="Public",B43*0.44,B36*0.3)),2) -> 30000
A33: OH-percentage | B33: =IF(E31="","",IF(E31="Public research and knowledge dissemination organization",0.44,0.3)) -> 0.3 | C33: OH residual amount | D33: =IF(E31="","",IF(LEFT(E31,6)="Public",B43*0.44-B44,B36*0.3-B44)) -> 0
B35: Costs | C35: Of which: GUDP | D35: Of which: Independent financing | E35: Of which: GUDP - manual | F35: Of which: Other public funding - manual | G35: No. of hours | J35: Specification of sub-budget | P35: =IF(Q45="","",IF(RIGHT(E31,10)="Virksomhed",IF(SUM(Q36:Q44)/COUNT(Q36:Q44)<>Q45,1,""),"")) ->  | Q35: subsidy rate
A36: Salary | B36: 100000 | C36: =IFERROR(IF($G$32="",IF(E36="",B36*$E$32,E36),IF(E36="",B36*$G$32,E36)),0) -> 70000 | D36: =IFERROR(B36-C36-F36,0) -> 30000 | G36: 313 | H36: =IF(B36="",0,B36) -> 100000 | I36: =IF($E$31<>"Public research and knowledge dissemination organization",0,IF(B36="",0,B36)) -> 0 | P36: =A36 -> Salary | Q36: =IFERROR(C36/B36,"") -> 0.7
A37: External assistance | C37: =IFERROR(IF($G$32="",IF(E37="",B37*$E$32,E37),IF(E37="",B37*$G$32,E37)),0) -> 0 | D37: =IFERROR(B37-C37-F37,0) -> 0 | H37: 0 | I37: 0 | P37: External assistance
A38: Other costs | B38: 50000 | C38: 35000 | D38: 15000 | H38: 50000 | I38: 0 | P38: Other costs | Q38: 0.7
A39: Apparatus/equipment | C39: 0 | D39: 0 | H39: 0 | I39: 0 | P39: Apparatus/equipment
A40: Scrap value | C40: 0 | D40: 0 | H40: 0 | I40: 0 | P40: Scrap value
A41: Income, if any | C41: 0 | D41: 0 | H41: 0 | I41: 0 | P41: Income, if any
A42: Audit costs | B42: 18000 | C42: 12600 | D42: 5400 | H42: 18000 | I42: 0 | P42: Audit costs | Q42: 0.7
A43: Total excl. OH | B43: =SUM(B36:B42) -> 168000 | C43: =SUM(C36:C42) -> 117600 | D43: =SUM(D36:D42) -> 50400 | E43: =SUM(E36:E42) -> 0 | F43: =SUM(F36:F42) -> 0 | G43: =SUM(G36:G42) -> 313 | H43: =SUM(H36:H42) -> 168000 | I43: 0 | P43: Total excl. OH | Q43: 0.7
A44: OH | B44: =B36*0.3 -> 30000 | C44: =IFERROR(IF($G$32="",IF(E44="",B44*$E$32,E44),IF(E44="",B44*$G$32,E44)),0) -> 21000 | D44: =IFERROR(B44-C44-F44,0) -> 9000 | H44: =IF(B44="",0,B44) -> 30000 | I44: 0 | P44: OH | Q44: 0.7
A45: Total | B45: =SUM(B36:B42)+B44 -> 198000 | C45: =SUM(C36:C42)+C44 -> 138600 | D45: =SUM(D36:D42)+D44 -> 59400 | E45: =SUM(E36:E42)+E44 -> 0 | F45: =SUM(F36:F42)+F44 -> 0 | G45: =SUM(G36:G42)+G44 -> 313 | H45: =SUM(H36:H42)+H44 -> 198000 | I45: 0 | P45: Total | Q45: 0.7
A47: Company name: | B47: Green University | C47: Participant 3 | D47: Company size: | E47: Public research and knowledge dissemination organization
A48: Activity type: | B48: Research | C48: =IF(IF(G48="",E48,G48)="",0,IF(G48="",E48,G48)) -> 0.9 | D48: Maximum subsidy rate: | E48: =_xlfn.IFNA(VLOOKUP(B48,'List of subsidy rates'!$A:$K,MATCH(CONCATENATE(E47," - ",$H$1),'List of subsidy rates'!$A$1:$K$1,0),FALSE),"") -> 0.9 | F48: Manual subsidy rate: | H48: =ROUND(IF(E47="",0,IF(LEFT(E47,6)="Public",B59*0.44,B52*0.3)),2) -> 880000
A49: OH-percentage | B49: =IF(E47="","",IF(E47="Public research and knowledge dissemination organization",0.44,0.3)) -> 0.44 | C49: OH residual amount | D49: =IF(E47="","",IF(LEFT(E47,6)="Public",B59*0.44-B60,B52*0.3-B60)) -> 0
B51: Costs | C51: Of which: GUDP | D51: Of which: Independent financing | E51: Of which: GUDP - manual | F51: Of which: Other public funding - manual | G51: No. of hours | J51: Specification of sub-budget | P51: =IF(Q61="","",IF(RIGHT(E47,10)="Virksomhed",IF(SUM(Q52:Q60)/COUNT(Q52:Q60)<>Q61,1,""),"")) ->  | Q51: subsidy rate
A52: Salary | B52: 1750000 | C52: =IFERROR(IF($G$48="",IF(E52="",B52*$E$48,E52),IF(E52="",B52*$G$48,E52)),0) -> 1750000 | D52: =IFERROR(B52-C52-F52,0) -> 0 | E52: 1750000 | F52: 0 | G52: 4200 | H52: =IF(B52="",0,B52) -> 1750000 | I52: =IF($E$47<>"Public research and knowledge dissemination organization",0,IF(B52="",0,B52)) -> 1750000 | P52: =A52 -> Salary | Q52: =IFERROR(C52/B52,"") -> 1
A53: External assistance | C53: 0 | D53: =IFERROR(B53-C53-F53,0) -> 0 | H53: 0 | I53: 0 | P53: External assistance
A54: Other costs | B54: 250000 | C54: 50000 | D54: 0 | E54: 50000 | F54: 200000 | H54: 250000 | I54: 250000 | P54: Other costs | Q54: 0.2
A55: Apparatus/equipment | C55: 0 | D55: 0 | H55: 0 | I55: 0 | P55: Apparatus/equipment
A56: Scrap value | C56: 0 | D56: 0 | H56: 0 | I56: 0 | P56: Scrap value
A57: Income, if any | C57: 0 | D57: 0 | H57: 0 | I57: 0 | P57: Income, if any
A58: Audit costs | C58: 0 | D58: 0 | H58: 0 | I58: 0 | P58: Audit costs
A59: Total excl. OH | B59: =SUM(B52:B58) -> 2000000 | C59: =SUM(C52:C58) -> 1800000 | D59: =SUM(D52:D58) -> 0 | E59: =SUM(E52:E58) -> 1800000 | F59: =SUM(F52:F58) -> 200000 | G59: =SUM(G52:G58) -> 4200 | H59: =SUM(H52:H58) -> 2000000 | I59: 2000000 | P59: Total excl. OH | Q59: 0.9
A60: OH | B60: =SUM(B52:B58)*0.44 -> 880000 | C60: =IFERROR(IF($G$48="",IF(E60="",B60*$E$48,E60),IF(E60="",B60*$G$48,E60)),0) -> 792000 | D60: =IFERROR(B60-C60-F60,0) -> 0 | E60: 792000 | F60: 88000 | H60: =IF(B60="",0,B60) -> 880000 | I60: 880000 | P60: OH | Q60: 0.9
A61: Total | B61: =SUM(B52:B58)+B60 -> 2880000 | C61: =SUM(C52:C58)+C60 -> 2592000 | D61: =SUM(D52:D58)+D60 -> 0 | E61: =SUM(E52:E58)+E60 -> 2592000 | F61: =SUM(F52:F58)+F60 -> 288000 | G61: =SUM(G52:G58)+G60 -> 4200 | H61: =SUM(H52:H58)+H60 -> 2880000 | I61: 2880000 | P61: Total | Q61: 0.9
A63: Company name: | B63: Green Knowledge Organization | C63: Participant 4 | D63: Company size: | E63: Private research and knowledge dissemination organization
A64: Activity type: | B64: Development | C64: =IF(IF(G64="",E64,G64)="",0,IF(G64="",E64,G64)) -> 0.4 | D64: Maximum subsidy rate: | E64: =_xlfn.IFNA(VLOOKUP(B64,'List of subsidy rates'!$A:$K,MATCH(CONCATENATE(E63," - ",$H$1),'List of subsidy rates'!$A$1:$K$1,0),FALSE),"") -> 0.4 | F64: Manual subsidy rate: | H64: =ROUIND(IF(E63="",0,IF(LEFT(E63,6)="Public",B75*0.44,B68*0.3)),2) -> 
A65: OH-percentage | B65: =IF(E63="","",IF(E63="Public research and knowledge dissemination organization",0.44,0.3)) -> 0.3 | C65: OH residual amount | D65: =IF(E63="","",IF(LEFT(E63,6)="Public",B75*0.44-B76,B68*0.3-B76)) -> 0
B67: Costs | C67: Of which: GUDP | D67: Of which: Independent financing | E67: Of which: GUDP - manual | F67: Of which: Other public funding - manual | G67: No. of hours | J67: Specification of sub-budget | P67: =IF(Q77="","",IF(RIGHT(E63,10)="Virksomhed",IF(SUM(Q68:Q76)/COUNT(Q68:Q76)<>Q77,1,""),"")) ->  | Q67: subsidy rate
A68: Salary | B68: 200000 | C68: =IFERROR(IF($G$64="",IF(E68="",B68*$E$64,E68),IF(E68="",B68*$G$64,E68)),0) -> 80000 | D68: =IFERROR(B68-C68-F68,0) -> 60000 | F68: 60000 | G68: 526 | H68: =IF(B68="",0,B68) -> 200000 | I68: =IF($E$63<>"Public research and knowledge dissemination organization",0,IF(B68="",0,B68)) -> 0 | P68: =A68 -> Salary | Q68: =IFERROR(C68/B68,"") -> 0.4
A69: External assistance | C69: 0 | D69: =IFERROR(B69-C69-F69,0) -> 0 | H69: 0 | I69: 0 | P69: External assistance
A70: Other costs | C70: 0 | D70: 0 | H70: 0 | I70: 0 | P70: Other costs
A71: Apparatus/equipment | C71: 0 | D71: 0 | H71: 0 | I71: 0 | P71: Apparatus/equipment
A72: Scrap value | C72: 0 | D72: 0 | H72: 0 | I72: 0 | P72: Scrap value
A73: Income, if any | C73: 0 | D73: 0 | H73: 0 | I73: 0 | P73: Income, if any
A74: Audit costs | B74: 16000 | C74: 6400 | D74: 4800 | F74: 4800 | H74: 16000 | I74: 0 | P74: Audit costs | Q74: 0.4
A75: Total excl. OH | B75: =SUM(B68:B74) -> 216000 | C75: =SUM(C68:C74) -> 86400 | D75: =SUM(D68:D74) -> 64800 | E75: =SUM(E68:E74) -> 0 | F75: =SUM(F68:F74) -> 64800 | G75: =SUM(G68:G74) -> 526 | H75: =SUM(H68:H74) -> 216000 | I75: 0 | P75: Total excl. OH | Q75: 0.4
A76: OH | B76: =B68*0.3 -> 60000 | C76: =IFERROR(IF($G$64="",IF(E76="",B76*$E$64,E76),IF(E76="",B76*$G$64,E76)),0) -> 24000 | D76: =IFERROR(B76-C76-F76,0) -> 18000 | F76: 18000 | H76: =IF(B76="",0,B76) -> 60000 | I76: 0 | P76: OH | Q76: 0.4
A77: Total | B77: =SUM(B68:B74)+B76 -> 276000 | C77: =SUM(C68:C74)+C76 -> 110400 | D77: =SUM(D68:D74)+D76 -> 82800 | E77: =SUM(E68:E74)+E76 -> 0 | F77: =SUM(F68:F74)+F76 -> 82800 | G77: =SUM(G68:G74)+G76 -> 526 | H77: =SUM(H68:H74)+H76 -> 276000 | I77: 0 | P77: Total | Q77: 0.4
A79: Company name: | C79: Participant 5 | D79: Company size:
A80: Activity type: | C80: =IF(IF(G80="",E80,G80)="",0,IF(G80="",E80,G80)) -> 0 | D80: Maximum subsidy rate: | E80: =_xlfn.IFNA(VLOOKUP(B80,'List of subsidy rates'!$A:$K,MATCH(CONCATENATE(E79," - ",$H$1),'List of subsidy rates'!$A$1:$K$1,0),FALSE),"") ->  | F80: Manual subsidy rate: | H80: =ROUND(IF(E79="",0,IF(LEFT(E79,6)="Public",B91*0.44,B84*0.3)),2) -> 0
A81: OH-percentage | B81: =IF(E79="","",IF(E79="Public research and knowledge dissemination organization",0.44,0.3)) ->  | C81: OH residual amount | D81: =IF(E79="","",IF(LEFT(E79,6)="Public",B91*0.44-B92,B84*0.3-B92)) -> 
A83: =IF(B93>0,"Ja","") ->  | B83: Costs | C83: Of which: GUDP | D83: Of which: Independent financing | E83: Of which: GUDP - manual | F83: Of which: Other public funding - manual | G83: No. of hours | J83: Specification of sub-budget | P83: =IF(Q93="","",IF(RIGHT(E79,10)="Virksomhed",IF(SUM(Q84:Q92)/COUNT(Q84:Q92)<>Q93,1,""),"")) ->  | Q83: subsidy rate
A84: Salary | C84: =IFERROR(IF($G$80="",IF(E84="",B84*$E$80,E84),IF(E84="",B84*$G$80,E84)),0) -> 0 | D84: =IFERROR(B84-C84-F84,0) -> 0 | H84: =IF(B84="",0,B84) -> 0 | I84: =IF($E$79<>"Public research and knowledge dissemination organization",0,IF(B84="",0,B84)) -> 0 | P84: =A84 -> Salary | Q84: =IFERROR(C84/B84,"") -> 
A85: External assistance | C85: 0 | D85: =IFERROR(B85-C85-F85,0) -> 0 | H85: 0 | I85: 0 | P85: External assistance
A86: Other costs | C86: 0 | D86: 0 | H86: 0 | I86: 0 | P86: Other costs
A87: Apparatus/equipment | C87: 0 | D87: 0 | H87: 0 | I87: 0 | P87: Apparatus/equipment
A88: Scrap value | C88: 0 | D88: 0 | H88: 0 | I88: 0 | P88: Scrap value
A89: Income, if any | C89: 0 | D89: 0 | H89: 0 | I89: 0 | P89: Income, if any
A90: Audit costs | C90: 0 | D90: 0 | H90: 0 | I90: 0 | P90: Audit costs
A91: Total excl. OH | B91: =SUM(B84:B90) -> 0 | C91: =SUM(C84:C90) -> 0 | D91: =SUM(D84:D90) -> 0 | E91: =SUM(E84:E90) -> 0 | F91: =SUM(F84:F90) -> 0 | G91: =SUM(G84:G90) -> 0 | H91: =SUM(H84:H90) -> 0 | I91: 0 | P91: Total excl. OH
A92: OH | C92: =IFERROR(IF($G$80="",IF(E92="",B92*$E$80,E92),IF(E92="",B92*$G$80,E92)),0) -> 0 | D92: =IFERROR(B92-C92-F92,0) -> 0 | H92: =IF(B92="",0,B92) -> 0 | I92: 0 | P92: OH
A93: Total | B93: =SUM(B84:B90)+B92 -> 0 | C93: =SUM(C84:C90)+C92 -> 0 | D93: =SUM(D84:D90)+D92 -> 0 | E93: =SUM(E84:E90)+E92 -> 0 | F93: =SUM(F84:F90)+F92 -> 0 | G93: =SUM(G84:G90)+G92 -> 0 | H93: =SUM(H84:H90)+H92 -> 0 | I93: 0 | P93: Total
A95: Company name: | C95: Participant 6 | D95: Company size:
A96: Activity type: | C96: =IF(IF(G96="",E96,G96)="",0,IF(G96="",E96,G96)) -> 0 | D96: Maximum subsidy rate: | E96: =_xlfn.IFNA(VLOOKUP(B96,'List of subsidy rates'!$A:$K,MATCH(CONCATENATE(E95," - ",$H$1),'List of subsidy rates'!$A$1:$K$1,0),FALSE),"") ->  | F96: Manual subsidy rate: | H96: =ROUND(IF(E95="",0,IF(LEFT(E95,6)="Public",B107*0.44,B100*0.3)),2) -> 0
A97: OH-percentage | B97: =IF(E95="","",IF(E95="Public research and knowledge dissemination organization",0.44,0.3)) ->  | C97: OH residual amount | D97: =IF(E95="","",IF(LEFT(E95,6)="Public",B107*0.44-B108,B100*0.3-B108)) -> 
A99: =IF(B109>0,"Ja","") ->  | B99: Costs | C99: Of which: GUDP | D99: Of which: Independent financing | E99: Of which: GUDP - manual | F99: Of which: Other public funding - manual | G99: No. of hours | J99: Specification of sub-budget | P99: =IF(Q109="","",IF(RIGHT(E95,10)="Virksomhed",IF(SUM(Q100:Q108)/COUNT(Q100:Q108)<>Q109,1,""),"")) ->  | Q99: subsidy rate
A100: Salary | C100: =IFERROR(IF($G$96="",IF(E100="",B100*$E$96,E100),IF(E100="",B100*$G$96,E100)),0) -> 0 | D100: =IFERROR(B100-C100-F100,0) -> 0 | H100: =IF(B100="",0,B100) -> 0 | I100: =IF($E$95<>"Public research and knowledge dissemination organization",0,IF(B100="",0,B100)) -> 0 | P100: =A100 -> Salary | Q100: =IFERROR(C100/B100,"") -> 
A101: External assistance | C101: 0 | D101: =IFERROR(B101-C101-F101,0) -> 0 | H101: 0 | I101: 0 | P101: External assistance
A102: Other costs | C102: 0 | D102: 0 | H102: 0 | I102: 0 | P102: Other costs
A103: Apparatus/equipment | C103: 0 | D103: 0 | H103: 0 | I103: 0 | P103: Apparatus/equipment
A104: Scrap value | C104: 0 | D104: 0 | H104: 0 | I104: 0 | P104: Scrap value
A105: Income, if any | C105: 0 | D105: 0 | H105: 0 | I105: 0 | P105: Income, if any
A106: Audit costs | C106: 0 | D106: 0 | H106: 0 | I106: 0 | P106: Audit costs
A107: Total excl. OH | B107: =SUM(B100:B106) -> 0 | C107: =SUM(C100:C106) -> 0 | D107: =SUM(D100:D106) -> 0 | E107: =SUM(E100:E106) -> 0 | F107: =SUM(F100:F106) -> 0 | G107: =SUM(G100:G106) -> 0 | H107: =SUM(H100:H106) -> 0 | I107: 0 | P107: Total excl. OH
A108: OH | C108: =IFERROR(IF($G$96="",IF(E108="",B108*$E$96,E108),IF(E108="",B108*$G$96,E108)),0) -> 0 | D108: =IFERROR(B108-C108-F108,0) -> 0 | H108: =IF(B108="",0,B108) -> 0 | I108: 0 | P108: OH
A109: Total | B109: =SUM(B100:B106)+B108 -> 0 | C109: =SUM(C100:C106)+C108 -> 0 | D109: =SUM(D100:D106)+D108 -> 0 | E109: =SUM(E100:E106)+E108 -> 0 | F109: =SUM(F100:F106)+F108 -> 0 | G109: =SUM(G100:G106)+G108 -> 0 | H109: =SUM(H100:H106)+H108 -> 0 | I109: 0 | P109: Total
A111: Company name: | C111: Participant 7 | D111: Company size:
A112: Activity type: | C112: =IF(IF(G112="",E112,G112)="",0,IF(G112="",E112,G112)) -> 0 | D112: Maximum subsidy rate: | E112: =_xlfn.IFNA(VLOOKUP(B112,'List of subsidy rates'!$A:$K,MATCH(CONCATENATE(E111," - ",$H$1),'List of subsidy rates'!$A$1:$K$1,0),FALSE),"") ->  | F112: Manual subsidy rate: | H112: =ROUND(IF(E111="",0,IF(LEFT(E111,6)="Public",B123*0.44,B116*0.3)),2) -> 0
A113: OH-percentage | B113: =IF(E111="","",IF(E111="Public research and knowledge dissemination organization",0.44,0.3)) ->  | C113: OH residual amount | D113: =IF(E111="","",IF(LEFT(E111,6)="Public",B123*0.44-B124,B116*0.3-B124)) -> 
A115: =IF(B125>0,"Ja","") ->  | B115: Costs | C115: Of which: GUDP | D115: Of which: Independent financing | E115: Of which: GUDP - manual | F115: Of which: Other public funding - manual | G115: No. of hours | J115: Specification of sub-budget | P115: =IF(Q125="","",IF(RIGHT(E111,10)="Virksomhed",IF(SUM(Q116:Q124)/COUNT(Q116:Q124)<>Q125,1,""),"")) ->  | Q115: subsidy rate
A116: Salary | C116: =IFERROR(IF($G$112="",IF(E116="",B116*$E$112,E116),IF(E116="",B116*$G$112,E116)),0) -> 0 | D116: =IFERROR(B116-C116-F116,0) -> 0 | H116: =IF(B116="",0,B116) -> 0 | I116: =IF($E$111<>"Public research and knowledge dissemination organization",0,IF(B116="",0,B116)) -> 0 | P116: =A116 -> Salary | Q116: =IFERROR(C116/B116,"") -> 
A117: External assistance | C117: 0 | D117: =IFERROR(B117-C117-F117,0) -> 0 | H117: 0 | I117: 0 | P117: External assistance
A118: Other costs | C118: 0 | D118: 0 | H118: 0 | I118: 0 | P118: Other costs
A119: Apparatus/equipment | C119: 0 | D119: 0 | H119: 0 | I119: 0 | P119: Apparatus/equipment
A120: Scrap value | C120: 0 | D120: 0 | H120: 0 | I120: 0 | P120: Scrap value
A121: Income, if any | C121: 0 | D121: 0 | H121: 0 | I121: 0 | P121: Income, if any
A122: Audit costs | C122: 0 | D122: 0 | H122: 0 | I122: 0 | P122: Audit costs
A123: Total excl. OH | B123: =SUM(B116:B122) -> 0 | C123: =SUM(C116:C122) -> 0 | D123: =SUM(D116:D122) -> 0 | E123: =SUM(E116:E122) -> 0 | F123: =SUM(F116:F122) -> 0 | G123: =SUM(G116:G122) -> 0 | H123: =SUM(H116:H122) -> 0 | I123: 0 | P123: Total excl. OH
A124: OH | C124: =IFERROR(IF($G$112="",IF(E124="",B124*$E$112,E124),IF(E124="",B124*$G$112,E124)),0) -> 0 | D124: =IFERROR(B124-C124-F124,0) -> 0 | H124: =IF(B124="",0,B124) -> 0 | I124: 0 | P124: OH
A125: Total | B125: =SUM(B116:B122)+B124 -> 0 | C125: =SUM(C116:C122)+C124 -> 0 | D125: =SUM(D116:D122)+D124 -> 0 | E125: =SUM(E116:E122)+E124 -> 0 | F125: =SUM(F116:F122)+F124 -> 0 | G125: =SUM(G116:G122)+G124 -> 0 | H125: =SUM(H116:H122)+H124 -> 0 | I125: 0 | P125: Total
A127: Company name: | C127: Participant 8 | D127: Company size:
A128: Activity type: | C128: =IF(IF(G128="",E128,G128)="",0,IF(G128="",E128,G128)) -> 0 | D128: Maximum subsidy rate: | E128: =_xlfn.IFNA(VLOOKUP(B128,'List of subsidy rates'!$A:$K,MATCH(CONCATENATE(E127," - ",$H$1),'List of subsidy rates'!$A$1:$K$1,0),FALSE),"") ->  | F128: Manual subsidy rate: | H128: =ROUND(IF(E127="",0,IF(LEFT(E127,6)="Public",B139*0.44,B132*0.3)),2) -> 0
A129: OH-percentage | B129: =IF(E127="","",IF(E127="Public research and knowledge dissemination organization",0.44,0.3)) ->  | C129: OH residual amount | D129: =IF(E127="","",IF(LEFT(E127,6)="Public",B139*0.44-B140,B132*0.3-B140)) -> 
A131: =IF(B141>0,"Ja","") ->  | B131: Costs | C131: Of which: GUDP | D131: Of which: Independent financing | E131: Of which: GUDP - manual | F131: Of which: Other public funding - manual | G131: No. of hours | J131: Specification of sub-budget | P131: =IF(Q141="","",IF(RIGHT(E127,10)="Virksomhed",IF(SUM(Q132:Q140)/COUNT(Q132:Q140)<>Q141,1,""),"")) ->  | Q131: subsidy rate
A132: Salary | C132: =IFERROR(IF($G$128="",IF(E132="",B132*$E$128,E132),IF(E132="",B132*$G$128,E132)),0) -> 0 | D132: =IFERROR(B132-C132-F132,0) -> 0 | H132: =IF(B132="",0,B132) -> 0 | I132: =IF($E$127<>"Public research and knowledge dissemination organization",0,IF(B132="",0,B132)) -> 0 | P132: =A132 -> Salary | Q132: =IFERROR(C132/B132,"") -> 
A133: External assistance | C133: 0 | D133: =IFERROR(B133-C133-F133,0) -> 0 | H133: 0 | I133: 0 | P133: External assistance
A134: Other costs | C134: 0 | D134: 0 | H134: 0 | I134: 0 | P134: Other costs
A135: Apparatus/equipment | C135: 0 | D135: 0 | H135: 0 | I135: 0 | P135: Apparatus/equipment
A136: Scrap value | C136: 0 | D136: 0 | H136: 0 | I136: 0 | P136: Scrap value
A137: Income, if any | C137: 0 | D137: 0 | H137: 0 | I137: 0 | P137: Income, if any
A138: Audit costs | C138: 0 | D138: 0 | H138: 0 | I138: 0 | P138: Audit costs
A139: Total excl. OH | B139: =SUM(B132:B138) -> 0 | C139: =SUM(C132:C138) -> 0 | D139: =SUM(D132:D138) -> 0 | E139: =SUM(E132:E138) -> 0 | F139: =SUM(F132:F138) -> 0 | G139: =SUM(G132:G138) -> 0 | H139: =SUM(H132:H138) -> 0 | I139: 0 | P139: Total excl. OH
A140: OH | C140: =IFERROR(IF($G$128="",IF(E140="",B140*$E$128,E140),IF(E140="",B140*$G$128,E140)),0) -> 0 | D140: =IFERROR(B140-C140-F140,0) -> 0 | H140: =IF(B140="",0,B140) -> 0 | I140: 0 | P140: OH
A141: Total | B141: =SUM(B132:B138)+B140 -> 0 | C141: =SUM(C132:C138)+C140 -> 0 | D141: =SUM(D132:D138)+D140 -> 0 | E141: =SUM(E132:E138)+E140 -> 0 | F141: =SUM(F132:F138)+F140 -> 0 | G141: =SUM(G132:G138)+G140 -> 0 | H141: =SUM(H132:H138)+H140 -> 0 | I141: 0 | P141: Total
A143: Company name: | C143: Participant 9 | D143: Company size:
A144: Activity type: | C144: =IF(IF(G144="",E144,G144)="",0,IF(G144="",E144,G144)) -> 0 | D144: Maximum subsidy rate: | E144: =_xlfn.IFNA(VLOOKUP(B144,'List of subsidy rates'!$A:$K,MATCH(CONCATENATE(E143," - ",$H$1),'List of subsidy rates'!$A$1:$K$1,0),FALSE),"") ->  | F144: Manual subsidy rate: | H144: =ROUND(IF(E143="",0,IF(LEFT(E143,6)="Public",B155*0.44,B148*0.3)),2) -> 0
A145: OH-percentage | B145: =IF(E143="","",IF(E143="Public research and knowledge dissemination organization",0.44,0.3)) ->  | C145: OH residual amount | D145: =IF(E143="","",IF(LEFT(E143,6)="Public",B155*0.44-B156,B148*0.3-B156)) -> 
A147: =IF(B157>0,"Ja","") ->  | B147: Costs | C147: Of which: GUDP | D147: Of which: Independent financing | E147: Of which: GUDP - manual | F147: Of which: Other public funding - manual | G147: No. of hours | J147: Specification of sub-budget | P147: =IF(Q157="","",IF(RIGHT(E143,10)="Virksomhed",IF(SUM(Q148:Q156)/COUNT(Q148:Q156)<>Q157,1,""),"")) ->  | Q147: subsidy rate
A148: Salary | C148: =IFERROR(IF($G$144="",IF(E148="",B148*$E$144,E148),IF(E148="",B148*$G$144,E148)),0) -> 0 | D148: =IFERROR(B148-C148-F148,0) -> 0 | H148: =IF(B148="",0,B148) -> 0 | I148: =IF($E$143<>"Public research and knowledge dissemination organization",0,IF(B148="",0,B148)) -> 0 | P148: =A148 -> Salary | Q148: =IFERROR(C148/B148,"") -> 
A149: External assistance | C149: 0 | D149: =IFERROR(B149-C149-F149,0) -> 0 | H149: 0 | I149: 0 | P149: External assistance
A150: Other costs | C150: 0 | D150: 0 | H150: 0 | I150: 0 | P150: Other costs
A151: Apparatus/equipment | C151: 0 | D151: 0 | H151: 0 | I151: 0 | P151: Apparatus/equipment
A152: Scrap value | C152: 0 | D152: 0 | H152: 0 | I152: 0 | P152: Scrap value
A153: Income, if any | C153: 0 | D153: 0 | H153: 0 | I153: 0 | P153: Income, if any
A154: Audit costs | C154: 0 | D154: 0 | H154: 0 | I154: 0 | P154: Audit costs
A155: Total excl. OH | B155: =SUM(B148:B154) -> 0 | C155: =SUM(C148:C154) -> 0 | D155: =SUM(D148:D154) -> 0 | E155: =SUM(E148:E154) -> 0 | F155: =SUM(F148:F154) -> 0 | G155: =SUM(G148:G154) -> 0 | H155: =SUM(H148:H154) -> 0 | I155: 0 | P155: Total excl. OH
A156: OH | C156: =IFERROR(IF($G$144="",IF(E156="",B156*$E$144,E156),IF(E156="",B156*$G$144,E156)),0) -> 0 | D156: =IFERROR(B156-C156-F156,0) -> 0 | H156: =IF(B156="",0,B156) -> 0 | I156: 0 | P156: OH
A157: Total | B157: =SUM(B148:B154)+B156 -> 0 | C157: =SUM(C148:C154)+C156 -> 0 | D157: =SUM(D148:D154)+D156 -> 0 | E157: =SUM(E148:E154)+E156 -> 0 | F157: =SUM(F148:F154)+F156 -> 0 | G157: =SUM(G148:G154)+G156 -> 0 | H157: =SUM(H148:H154)+H156 -> 0 | I157: 0 | P157: Total
A159: Company name: | C159: Participant 10 | D159: Company size:
A160: Activity type: | C160: =IF(IF(G160="",E160,G160)="",0,IF(G160="",E160,G160)) -> 0 | D160: Maximum subsidy rate: | E160: =_xlfn.IFNA(VLOOKUP(B160,'List of subsidy rates'!$A:$K,MATCH(CONCATENATE(E159," - ",$H$1),'List of subsidy rates'!$A$1:$K$1,0),FALSE),"") ->  | F160: Manual subsidy rate: | H160: =ROUND(IF(E159="",0,IF(LEFT(E159,6)="Public",B171*0.44,B164*0.3)),2) -> 0
A161: OH-percentage | B161: =IF(E159="","",IF(E159="Public research and knowledge dissemination organization",0.44,0.3)) ->  | C161: OH residual amount | D161: =IF(E159="","",IF(LEFT(E159,6)="Public",B171*0.44-B172,B164*0.3-B172)) -> 
A163: =IF(B173>0,"Ja","") ->  | B163: Costs | C163: Of which: GUDP | D163: Of which: Independent financing | E163: Of which: GUDP - manual | F163: Of which: Other public funding - manual | G163: No. of hours | J163: Specification of sub-budget | P163: =IF(Q173="","",IF(RIGHT(E159,10)="Virksomhed",IF(SUM(Q164:Q172)/COUNT(Q164:Q172)<>Q173,1,""),"")) ->  | Q163: subsidy rate
A164: Salary | C164: =IFERROR(IF($G$160="",IF(E164="",B164*$E$160,E164),IF(E164="",B164*$G$160,E164)),0) -> 0 | D164: =IFERROR(B164-C164-F164,0) -> 0 | H164: =IF(B164="",0,B164) -> 0 | I164: =IF($E$159<>"Public research and knowledge dissemination organization",0,IF(B164="",0,B164)) -> 0 | P164: =A164 -> Salary | Q164: =IFERROR(C164/B164,"") -> 
A165: External assistance | C165: 0 | D165: =IFERROR(B165-C165-F165,0) -> 0 | H165: 0 | I165: 0 | P165: External assistance
A166: Other costs | C166: 0 | D166: 0 | H166: 0 | I166: 0 | P166: Other costs
A167: Apparatus/equipment | C167: 0 | D167: 0 | H167: 0 | I167: 0 | P167: Apparatus/equipment
A168: Scrap value | C168: 0 | D168: 0 | H168: 0 | I168: 0 | P168: Scrap value
A169: Income, if any | C169: 0 | D169: 0 | H169: 0 | I169: 0 | P169: Income, if any
A170: Audit costs | C170: 0 | D170: 0 | H170: 0 | I170: 0 | P170: Audit costs
A171: Total excl. OH | B171: =SUM(B164:B170) -> 0 | C171: =SUM(C164:C170) -> 0 | D171: =SUM(D164:D170) -> 0 | E171: =SUM(E164:E170) -> 0 | F171: =SUM(F164:F170) -> 0 | G171: =SUM(G164:G170) -> 0 | H171: =SUM(H164:H170) -> 0 | I171: 0 | P171: Total excl. OH
A172: OH | C172: =IFERROR(IF($G$160="",IF(E172="",B172*$E$160,E172),IF(E172="",B172*$G$160,E172)),0) -> 0 | D172: =IFERROR(B172-C172-F172,0) -> 0 | H172: =IF(B172="",0,B172) -> 0 | I172: 0 | P172: OH
A173: Total | B173: =SUM(B164:B170)+B172 -> 0 | C173: =SUM(C164:C170)+C172 -> 0 | D173: =SUM(D164:D170)+D172 -> 0 | E173: =SUM(E164:E170)+E172 -> 0 | F173: =SUM(F164:F170)+F172 -> 0 | G173: =SUM(G164:G170)+G172 -> 0 | H173: =SUM(H164:H170)+H172 -> 0 | I173: 0 | P173: Total
A175: Company name: | C175: Participant 11 | D175: Company size:
A176: Activity type: | C176: =IF(IF(G176="",E176,G176)="",0,IF(G176="",E176,G176)) -> 0 | D176: Maximum subsidy rate: | E176: =_xlfn.IFNA(VLOOKUP(B176,'List of subsidy rates'!$A:$K,MATCH(CONCATENATE(E175," - ",$H$1),'List of subsidy rates'!$A$1:$K$1,0),FALSE),"") ->  | F176: Manual subsidy rate: | H176: =ROUND(IF(E175="",0,IF(LEFT(E175,6)="Public",B187*0.44,B180*0.3)),2) -> 0
A177: OH-percentage | B177: =IF(E175="","",IF(E175="Public research and knowledge dissemination organization",0.44,0.3)) ->  | C177: OH residual amount | D177: =IF(E175="","",IF(LEFT(E175,6)="Public",B187*0.44-B188,B180*0.3-B188)) -> 
A179: =IF(B189>0,"Ja","") ->  | B179: Costs | C179: Of which: GUDP | D179: Of which: Independent financing | E179: Of which: GUDP - manual | F179: Of which: Other public funding - manual | G179: No. of hours | J179: Specification of sub-budget | P179: =IF(Q189="","",IF(RIGHT(E175,10)="Virksomhed",IF(SUM(Q180:Q188)/COUNT(Q180:Q188)<>Q189,1,""),"")) ->  | Q179: subsidy rate
A180: Salary | C180: =IFERROR(IF($G$176="",IF(E180="",B180*$E$176,E180),IF(E180="",B180*$G$176,E180)),0) -> 0 | D180: =IFERROR(B180-C180-F180,0) -> 0 | H180: =IF(B180="",0,B180) -> 0 | I180: =IF($E$175<>"Public research and knowledge dissemination organization",0,IF(B180="",0,B180)) -> 0 | P180: =A180 -> Salary | Q180: =IFERROR(C180/B180,"") -> 
A181: External assistance | C181: 0 | D181: =IFERROR(B181-C181-F181,0) -> 0 | H181: 0 | I181: 0 | P181: External assistance
A182: Other costs | C182: 0 | D182: 0 | H182: 0 | I182: 0 | P182: Other costs
A183: Apparatus/equipment | C183: 0 | D183: 0 | H183: 0 | I183: 0 | P183: Apparatus/equipment
A184: Scrap value | C184: 0 | D184: 0 | H184: 0 | I184: 0 | P184: Scrap value
A185: Income, if any | C185: 0 | D185: 0 | H185: 0 | I185: 0 | P185: Income, if any
A186: Audit costs | C186: 0 | D186: 0 | H186: 0 | I186: 0 | P186: Audit costs
A187: Total excl. OH | B187: =SUM(B180:B186) -> 0 | C187: =SUM(C180:C186) -> 0 | D187: =SUM(D180:D186) -> 0 | E187: =SUM(E180:E186) -> 0 | F187: =SUM(F180:F186) -> 0 | G187: =SUM(G180:G186) -> 0 | H187: =SUM(H180:H186) -> 0 | I187: 0 | P187: Total excl. OH
A188: OH | C188: =IFERROR(IF($G$176="",IF(E188="",B188*$E$176,E188),IF(E188="",B188*$G$176,E188)),0) -> 0 | D188: =IFERROR(B188-C188-F188,0) -> 0 | H188: =IF(B188="",0,B188) -> 0 | I188: 0 | P188: OH
A189: Total | B189: =SUM(B180:B186)+B188 -> 0 | C189: =SUM(C180:C186)+C188 -> 0 | D189: =SUM(D180:D186)+D188 -> 0 | E189: =SUM(E180:E186)+E188 -> 0 | F189: =SUM(F180:F186)+F188 -> 0 | G189: =SUM(G180:G186)+G188 -> 0 | H189: =SUM(H180:H186)+H188 -> 0 | I189: 0 | P189: Total
A191: Company name: | C191: Participant 12 | D191: Company size:
A192: Activity type: | C192: =IF(IF(G192="",E192,G192)="",0,IF(G192="",E192,G192)) -> 0 | D192: Maximum subsidy rate: | E192: =_xlfn.IFNA(VLOOKUP(B192,'List of subsidy rates'!$A:$K,MATCH(CONCATENATE(E191," - ",$H$1),'List of subsidy rates'!$A$1:$K$1,0),FALSE),"") ->  | F192: Manual subsidy rate: | H192: =ROUND(IF(E191="",0,IF(LEFT(E191,6)="Public",B203*0.44,B196*0.3)),2) -> 0
A193: OH-percentage | B193: =IF(E191="","",IF(E191="Public research and knowledge dissemination organization",0.44,0.3)) ->  | C193: OH residual amount | D193: =IF(E191="","",IF(LEFT(E191,6)="Public",B203*0.44-B204,B196*0.3-B204)) -> 
A195: =IF(B205>0,"Ja","") ->  | B195: Costs | C195: Of which: GUDP | D195: Of which: Independent financing | E195: Of which: GUDP - manual | F195: Of which: Other public funding - manual | G195: No. of hours | J195: Specification of sub-budget | P195: =IF(Q205="","",IF(RIGHT(E191,10)="Virksomhed",IF(SUM(Q196:Q204)/COUNT(Q196:Q204)<>Q205,1,""),"")) ->  | Q195: subsidy rate
A196: Salary | C196: =IFERROR(IF($G$192="",IF(E196="",B196*$E$192,E196),IF(E196="",B196*$G$192,E196)),0) -> 0 | D196: =IFERROR(B196-C196-F196,0) -> 0 | H196: =IF(B196="",0,B196) -> 0 | I196: =IF($E$191<>"Public research and knowledge dissemination organization",0,IF(B196="",0,B196)) -> 0 | P196: =A196 -> Salary | Q196: =IFERROR(C196/B196,"") -> 
A197: External assistance | C197: 0 | D197: =IFERROR(B197-C197-F197,0) -> 0 | H197: 0 | I197: 0 | P197: External assistance
A198: Other costs | C198: 0 | D198: 0 | H198: 0 | I198: 0 | P198: Other costs
A199: Apparatus/equipment | C199: 0 | D199: 0 | H199: 0 | I199: 0 | P199: Apparatus/equipment
A200: Scrap value | C200: 0 | D200: 0 | H200: 0 | I200: 0 | P200: Scrap value
A201: Income, if any | C201: 0 | D201: 0 | H201: 0 | I201: 0 | P201: Income, if any
A202: Audit costs | C202: 0 | D202: 0 | H202: 0 | I202: 0 | P202: Audit costs
A203: Total excl. OH | B203: =SUM(B196:B202) -> 0 | C203: =SUM(C196:C202) -> 0 | D203: =SUM(D196:D202) -> 0 | E203: =SUM(E196:E202) -> 0 | F203: =SUM(F196:F202) -> 0 | G203: =SUM(G196:G202) -> 0 | H203: =SUM(H196:H202) -> 0 | I203: 0 | P203: Total excl. OH
A204: OH | C204: =IFERROR(IF($G$192="",IF(E204="",B204*$E$192,E204),IF(E204="",B204*$G$192,E204)),0) -> 0 | D204: =IFERROR(B204-C204-F204,0) -> 0 | H204: =IF(B204="",0,B204) -> 0 | I204: 0 | P204: OH
A205: Total | B205: =SUM(B196:B202)+B204 -> 0 | C205: =SUM(C196:C202)+C204 -> 0 | D205: =SUM(D196:D202)+D204 -> 0 | E205: =SUM(E196:E202)+E204 -> 0 | F205: =SUM(F196:F202)+F204 -> 0 | G205: =SUM(G196:G202)+G204 -> 0 | H205: =SUM(H196:H202)+H204 -> 0 | I205: 0 | P205: Total
A207: Company name: | C207: Participant 13 | D207: Company size:
A208: Activity type: | C208: =IF(IF(G208="",E208,G208)="",0,IF(G208="",E208,G208)) -> 0 | D208: Maximum subsidy rate: | E208: =_xlfn.IFNA(VLOOKUP(B208,'List of subsidy rates'!$A:$K,MATCH(CONCATENATE(E207," - ",$H$1),'List of subsidy rates'!$A$1:$K$1,0),FALSE),"") ->  | F208: Manual subsidy rate: | H208: =ROUND(IF(E207="",0,IF(LEFT(E207,6)="Public",B219*0.44,B212*0.3)),2) -> 0
A209: OH-percentage | B209: =IF(E207="","",IF(E207="Public research and knowledge dissemination organization",0.44,0.3)) ->  | C209: OH residual amount | D209: =IF(E207="","",IF(LEFT(E207,6)="Public",B219*0.44-B220,B212*0.3-B220)) -> 
A211: =IF(B221>0,"Ja","") ->  | B211: Costs | C211: Of which: GUDP | D211: Of which: Independent financing | E211: Of which: GUDP - manual | F211: Of which: Other public funding - manual | G211: No. of hours | J211: Specification of sub-budget | P211: =IF(Q221="","",IF(RIGHT(E207,10)="Virksomhed",IF(SUM(Q212:Q220)/COUNT(Q212:Q220)<>Q221,1,""),"")) ->  | Q211: subsidy rate
A212: Salary | C212: =IFERROR(IF($G$208="",IF(E212="",B212*$E$208,E212),IF(E212="",B212*$G$208,E212)),0) -> 0 | D212: =IFERROR(B212-C212-F212,0) -> 0 | H212: =IF(B212="",0,B212) -> 0 | I212: =IF($E$207<>"Public research and knowledge dissemination organization",0,IF(B212="",0,B212)) -> 0 | P212: =A212 -> Salary | Q212: =IFERROR(C212/B212,"") -> 
A213: External assistance | C213: 0 | D213: =IFERROR(B213-C213-F213,0) -> 0 | H213: 0 | I213: 0 | P213: External assistance
A214: Other costs | C214: 0 | D214: 0 | H214: 0 | I214: 0 | P214: Other costs
A215: Apparatus/equipment | C215: 0 | D215: 0 | H215: 0 | I215: 0 | P215: Apparatus/equipment
A216: Scrap value | C216: 0 | D216: 0 | H216: 0 | I216: 0 | P216: Scrap value
A217: Income, if any | C217: 0 | D217: 0 | H217: 0 | I217: 0 | P217: Income, if any
A218: Audit costs | C218: 0 | D218: 0 | H218: 0 | I218: 0 | P218: Audit costs
A219: Total excl. OH | B219: =SUM(B212:B218) -> 0 | C219: =SUM(C212:C218) -> 0 | D219: =SUM(D212:D218) -> 0 | E219: =SUM(E212:E218) -> 0 | F219: =SUM(F212:F218) -> 0 | G219: =SUM(G212:G218) -> 0 | H219: =SUM(H212:H218) -> 0 | I219: 0 | P219: Total excl. OH
A220: OH | C220: =IFERROR(IF($G$208="",IF(E220="",B220*$E$208,E220),IF(E220="",B220*$G$208,E220)),0) -> 0 | D220: =IFERROR(B220-C220-F220,0) -> 0 | H220: =IF(B220="",0,B220) -> 0 | I220: 0 | P220: OH
A221: Total | B221: =SUM(B212:B218)+B220 -> 0 | C221: =SUM(C212:C218)+C220 -> 0 | D221: =SUM(D212:D218)+D220 -> 0 | E221: =SUM(E212:E218)+E220 -> 0 | F221: =SUM(F212:F218)+F220 -> 0 | G221: =SUM(G212:G218)+G220 -> 0 | H221: =SUM(H212:H218)+H220 -> 0 | I221: 0 | P221: Total
A223: Company name: | C223: Participant 14 | D223: Company size:
A224: Activity type: | C224: =IF(IF(G224="",E224,G224)="",0,IF(G224="",E224,G224)) -> 0 | D224: Maximum subsidy rate: | E224: =_xlfn.IFNA(VLOOKUP(B224,'List of subsidy rates'!$A:$K,MATCH(CONCATENATE(E223," - ",$H$1),'List of subsidy rates'!$A$1:$K$1,0),FALSE),"") ->  | F224: Manual subsidy rate: | H224: =ROUND(IF(E223="",0,IF(LEFT(E223,6)="Public",B235*0.44,B228*0.3)),2) -> 0
A225: OH-percentage | B225: =IF(E223="","",IF(E223="Public research and knowledge dissemination organization",0.44,0.3)) ->  | C225: OH residual amount | D225: =IF(E223="","",IF(LEFT(E223,6)="Public",B235*0.44-B236,B228*0.3-B236)) -> 
A227: =IF(B237>0,"Ja","") ->  | B227: Costs | C227: Of which: GUDP | D227: Of which: Independent financing | E227: Of which: GUDP - manual | F227: Of which: Other public funding - manual | G227: No. of hours | J227: Specification of sub-budget | P227: =IF(Q237="","",IF(RIGHT(E223,10)="Virksomhed",IF(SUM(Q228:Q236)/COUNT(Q228:Q236)<>Q237,1,""),"")) ->  | Q227: subsidy rate
A228: Salary | C228: =IFERROR(IF($G$224="",IF(E228="",B228*$E$224,E228),IF(E228="",B228*$G$224,E228)),0) -> 0 | D228: =IFERROR(B228-C228-F228,0) -> 0 | H228: =IF(B228="",0,B228) -> 0 | I228: =IF($E$223<>"Public research and knowledge dissemination organization",0,IF(B228="",0,B228)) -> 0 | P228: =A228 -> Salary | Q228: =IFERROR(C228/B228,"") -> 
... 93 more rows

Sheet List of subsidy rates
B1: Public research and knowledge dissemination organization - Individual | C1: Public research and knowledge dissemination organization - Collaboration | D1: Private research and knowledge dissemination organization - Individual | E1: Private research and knowledge dissemination organization - Collaboration | F1: Small company - Individual | G1: Small company - Collaboration | H1: Medium-sized company - Individual | I1: Medium-sized company - Collaboration | J1: Large company - Individual | K1: Large company - Collaboration
A2: Research | B2: 0.5 | C2: 0.9 | D2: 0.5 | E2: 0.65 | F2: 0.9 | G2: 0.8 | H2: 0.6 | I2: 0.75 | J2: 0.5 | K2: 0.65
A3: Development | B3: 0.25 | C3: 0.9 | D3: 0.25 | E3: 0.4 | F3: 0.45 | G3: 0.6 | H3: 0.35 | I3: 0.5 | J3: 0.25 | K3: 0.4
A4: Demonstration | B4: 0.7 | C4: 0.7 | D4: 0.7 | E4: 0.7 | F4: 0.7 | G4: 0.7 | H4: 0.7 | I4: 0.7 | J4: 0.7 | K4: 0.7
A5: *Companies are not allowed co-financing with other public funds
A6: *Public research and knowledge dissemination organizations are not allowed co-financing with own funds

Sheet Deliverables
C1: Acronym: | G1: Org RDD 9 | H1: Individual
E2: Delete red-highlighted text.
A3: Work package | B3: Task | C3: Deliverable no. | D3: Type of deliverable 2 (from the application's Gantt-chart) | E3: Title of deliverable | F3: Type (e.g. video, scientific article, press release, field day) | G3: Target group - who is the communication material aimed at? | H3: Through which communication channel will you reach the target group? | I3: When? (Expected delivery date) | J3: Responsible project participant
A4: 1 | B4: 1 | C4: D1.1.1 | D4: FV1 | E4: E.g. "Impact of rooting areas on hygiene in pig pens" | F4: "Peer reviewed scientific article" | G4: Research community | H4: Scientific journal of cows and pigs
A5: 1 | B5: 1 | C5: D1.1.2 | D5: FV5 | E5: E.g. "Influence of feed additives on the gastrointestinal flora" | F5: Presentation at scientific conference | G5: Research community | H5: Cow and pig scientific conference
A6: 2 | B6: 1 | C6: D.2.1.1 | D6: FF3 | E6: E.g. "The Economy of extracting Grass Protein" | F6: Popular science article | G6: Primary producers & advisors | H6: Økologisk Landbrug [Organic Agriculture] (newspaper)
A7: 2 | B7: 1 | C7: D2.1.2 | D7: FF5 | E7: E.g. "Recommendations for improved cow-calf systems" | F7: Presentation | G7: Primary producers & advisors | H7: Økologi-Kongressen [The Orgainc Congress]
A8: 2 | B8: 2 | C8: D2.2.1 | D8: UP1 | E8: E.g. "Green manure extracted from grass, a new product" | F8: Internal report | G8: Project participants | H8: Project meeting
A9: 3 | B9: 1 | C9: D3.1.1 | D9: UF2 | E9: E.g. "Recommendations for the prevention of diarrhea in piglets" | F9: Report on the prevention of diarrhea in piglets | G9: Primary producers & advisors | H9: DCA report
A10: 3 | B10: 1 | C10: D3.1.2 | D10: DF2 | E10: E.g. "Guidance on the use of mechanical weed treatment in fruit orchards" | F10: Book | G10: Primary producers & advisors | H10: Website, social media, direct mail

Sheet Milestones
C1: Acronym: | F1: Org RDD 9 | H1: Individuel
D2: Delete red-highlighted text.
A3: Work package | B3: Task | C3: Milestone no. | D3: Title (from application and if changed) | E3: Responsible project participant (from application and if changed) | F3: Date milestone is expected to be reached according to application | G3: Planned date for milestone, if changed | H3: Actual date where milestone is reached | I3: Fulfilled (OK) or Changes (D)
A4: 1 | B4: 1.1 | C4: M.1.1.2 | D4: Eg. "Experiments brought", "Experiment results collected", "Manufacturers interviewed"; "Experimental protocol prepared", "Internal workshop held" etc.
A5: 1 | B5: 1 | C5: M1.1.2
A6: 1 | B6: 2 | C6: M1.2.1
A7: 2 | B7: 1 | C7: M2.1.1
